Workbook

Sheet Home Page
B2: Valuation Toolkit
C5: Valuation Toolkit for Carriageways, Footways & Cycleways, Street Lighting, Street Furniture and Traffic Management Equipment.
D7: These cells need to be completed with own data.
D9: These cells are pre-populated with a formula but your own data can be added if you do not need the formula.
D11: Reference only.
D13: Help or more information per page.
D15: More information per cell.
C18: Please download the latest version of the Valuations Variables File from the CIPFA website and update the rates using the button below.
C20: The Valuation Variables Sheet holds all variables needed to complete this toolkit for each Local Authority. Included are Regional Factors, Inflation rates, HAMFIG default GRC rates and Land Rates. Please use the Update Rate button to use the latest rates that have been downloaded.
C24: Version Control | E24: Regional Factors | G24: GRC Rates | I24: Land Values
C25: ='Valuation Variables'!B8 -> Version 1.4 | E25: ='Valuation Variables'!C8 -> 2017-06-21 | G25: ='Valuation Variables'!D8 -> 2018-06-06 | I25: ='Valuation Variables'!E8 -> 2018-06-13
C28: Version Control
C30: 14/15 Valuation Toolkit, Version 1.3, Apr 2015 | E30: For use with the 14/15 valuations.
C31: 14/15 Valuation Toolkit, Version 1.4, Jun 2015 | E31: Page Setup' amended to enable worksheets to be printed; Note 4 on 'Land GRC' worksheet updated; Formatting in 'Comments' cells amended to enable larger quantities of text to be displayed; Regional Factor function updated on Carriageways & Footways GRC sheet to enable 'Yorkshire & Humber' Authorities to be selected.
C32: 15/16 Valuation Toolkit, Version 2.4, Oct 2015 | E32: "Help" button for more information. Change Register added to the end of each calculator (worksheet)
C33: 15/16 Valuation Toolkit, Version 2.5, Nov 2015 | E33: Draft Issue for HAMFIG
C34: 15/16 Valuation Toolkit, Version 2.6, Feb 2016 | E34: Update to Footways DRC sheet following an update to the Footways DRC methodology in the Transport Code and Transport Guidance. Printable certificate produced on completion of Valuation Toolkit. Helpdesk number changed to 0121 483 5665
C36: Certificate
C38: Once Local Authorities have completed their Valuation, they can click on the 'Create Certificate' button to create a PDF Certificate.
C41: Questions and Queries
B43: Please refer to the Transport Code and Transport Guidance for support in completing this toolkit. Links can be found here:
C45: Transport Code: | E45: http://www.cipfa.org/policy-and-guidance/local-authority-transport-infrastructure-assets
C46: Transport Guidance: | E46: http://www.cipfa.org/policy-and-guidance/local-authority-transport-infrastructure-assets/local-authority-transport-infrastructure-assets-supporting-documents
C48: If you have any questions or queries regarding this spreadsheet, please contact the HAMFIG Helpdesk:
C49: Email | D49: hamfig@atkinsglobal.com
C50: Telephone | D50: 0121 483 5665

Sheet Valuation Summary
C3: Valuation Summary
C5: Highways Infrastructure Assets
C7: This tab is used to capture the information required by local authorities to value their Highways Network Assets on a Depreciated Replacement Cost (DRC) basis. This information is required for Whole of Government Accounts (WGA) purposes for 2015/16 and from 2016/17 local authorities will be required to value their Highways Network Assets on a DRC basis in their financial statements. Please be aware that in many cases local authority staff outside of the central finance team, such as asset management and engineering staff, are undertaking this work.
C8: Please refer to the Data Collection Pack (DCT) guidance, CIPFA's Code of Practice on Transport Infrastructure Assets and the accompanying Guidance Notes, and the Highways Asset Management Financial Information Group's (HAMFIG) supporting materials on the CIPFA website.
C9: Due to the resources and cost involved in auditing the data in this era of substantially tighter public spending, this data has yet to be audited. This should not detract from the worth of the Highways Infrastructure work and the improved services and efficiency savings that will result.
C11: We stress the importance of providing the data to the same quality required for audit review, given the size and complexity of the task, and so that the momentum of the work is maintained. In addition, the quality of the data will feed into the discussion of including local authority Highways Infrastructure Assets in the WGA account itself overall for 2015-16. All estimates should be calculated on the basis set out in the CIPFA Code of Practice on Transport Infrastructure Assets and the accompanying Guidance Notes.
C12: IMPORTANT: Figures must be rounded to thousands (£'000s), and the 2015-16 figures in PP&E that feed into the Balance Sheet should still be Historical Cost in the DCT and Statement of Accounts. If you are a body that does not have a Highways Network Asset please enter zeros in order for your DCT to validate. Please provide an explanation to support the entry of zero balances.
C14: Code and information on its development (CIPFA): | D14: http://www.cipfa.org/policy-and-guidance/local-authority-transport-infrastructure-assets
C15: Supporting materials and spreadsheet calculation templates (CIPFA): | D15: http://www.cipfa.org/policy-and-guidance/local-authority-transport-infrastructure-assets/local-authority-transport-infrastructure-assets-supporting-documents
C17: Please confirm that you have completed this questionnaire by selecting yes in the drop-down box on the right. If you are not completing the questionnaire due to not having a Highways Network Asset, please select the relevant option in the box. Please note that you will be required to comment if you have not completed the questionnaire fully on the validations sheet before you lock your pack.
C19: DATA REQUIRED: GRC, DRC & lands data estimates
C21: Section 1: DRC Disclosure for PPE Note
C23: Gross Replacement Cost | D23: Carriageway £,000s | E23: Footways + Cycleways £,000s | F23: Structures £,000s | G23: Street Lighting £,000s | H23: Traffic Management £,000s | I23: Street furniture £,000s | J23: Land £,000s | K23: Total £,000s
C24: GRC Opening Balance | K24: =SUM(D24:J24) -> 0
C25: Additions | K25: 0
C26: Revaluation increases / (decreases) recognised in the Revaluation Reserve | D26: =D30-D24-D25-D27-D28-D29 -> 0 | E26: 0 | F26: 0 | G26: 0 | H26: 0 | I26: 0 | J26: 0 | K26: =SUM(D26:J26) -> 0
C27: Revaluation increases / (decreases) recognised in the Surplus/Deficit on the Provision of Services | K27: 0
C28: Disposals / Derecognition | K28: 0
C29: Other | K29: 0
C30: GRC Closing Balance | D30: =IFERROR('Carriageways & Footways GRC'!$P$42,"Enter a GRC Value") -> 0 | E30: =IFERROR('Carriageways & Footways GRC'!$P$44,"Enter a GRC Value") -> 0 | G30: =IFERROR(SUM(SLGRC[GRC Value (£)])/1000,"Enter a GRC Value") -> 0 | H30: =IFERROR(SUM(TrafficM[GRC Value (£)])/1000,"Enter a GRC Value") -> 0 | I30: =IFERROR(IF(SF_Sheet="Own Data",SUM(SFOwnData[GRC Value (£)])/1000,IF(SF_Sheet="Derbyshire",SUM(SFDerbyshire[GRC Value (£)])/1000,IF(SF_Sheet="Hertfordshire",SUM(SFHerts[GRC Value (£)])/1000,IF(SF_Sheet="Medway",SUM(SFMedway[GRC Value (£)])/1000,0)))),"Enter a GRC Value") -> 0 | J30: ='Land GRC'!$D$29 -> 0 | K30: =SUM(D30:J30) -> 0
C31: Pick a Data Category (Actual Inventory, Sample Inventory, Estimated Values, Combination) | D31: Pick a Data Category | E31: Pick a Data Category | F31: Pick a Data Category | G31: Pick a Data Category | H31: Pick a Data Category | I31: Pick a Data Category | J31: Pick a Data Category
C33: Accumulated Depreciation | D33: Carriageway £,000s | E33: Footways + Cycleways £,000s | F33: Structures £,000s | G33: Street Lighting £,000s | H33: Traffic Management £,000s | I33: Street furniture £,000s | J33: Land £,000s | K33: Total £,000s
C34: Accumulated Depreciation Opening Balance | K34: =SUM(D34:J34) -> 0
C35: Depreciation Charge | E35: ='Footways DRC'!E57 -> 0 | G35: ='Street Lighting GRC & DRC'!D25 -> 0 | H35: ='Traffic Mangt Eqpt GRC & DRC'!D32 -> 0 | I35: =IFERROR(IF(SF_Sheet="Own Data",'SF - Own Data'!E50,IF(SF_Sheet="Derbyshire",'SF - Derbyshire'!E50,IF(SF_Sheet="Hertfordshire",'SF - Hertfordshire'!E45,IF(SF_Sheet="Medway",'SF - Medway'!E65,0)))),0) -> 0 | K35: 0
C36: Depreciation written out to the Revaluation Reserve | D36: =D42-D34-D35-D37-D38-D39-D41-D40 -> 0 | E36: =E42-E34-E35-E37-E38-E39-E41-E40 -> 0 | F36: 0 | G36: 0 | H36: 0 | I36: 0 | K36: 0
C37: Depreciation written out to the Surplus/Deficit on the Provision of Services | K37: 0
C38: Impairment losses/(reversals) recognised in the Revaluation Reserve | K38: 0
C39: Impairment losses / (reversals) recognised in the Surplus/Deficit on the Provision of Services | K39: 0
C40: Disposals / Derecognition | K40: 0
C41: Other | K41: 0
C42: Accumulated Depreciation Closing Balance | E42: =IFERROR('Footways DRC'!$E$56,"Enter a DRC Value") -> 0 | G42: =IFERROR(SUM(SLGRC[Accumulated Depreciation (£)])/1000,"Enter a DRC Value") -> 0 | H42: =IFERROR(SUM(TrafficM[Accumulated Depreciation (£)])/1000,"Enter a GRC Value") -> 0 | I42: =IFERROR(IF(SF_Sheet="Own Data",SUM(SFOwnData[Accumulated Depreciation (£)])/1000,IF(SF_Sheet="Derbyshire",SUM(SFDerbyshire[Accumulated Depreciation (£)])/1000,IF(SF_Sheet="Hertfordshire",SUM(SFHerts[Accumulated Depreciation (£)])/1000,IF(SF_Sheet="Medway",SUM(SFMedway[Accumulated Depreciation (£)])/1000,0)))),"Enter a GRC Value") -> 0 | K42: 0
C44: Opening Net Book Value (DRC) | D44: =+D24-D34 -> 0 | E44: 0 | F44: 0 | G44: 0 | H44: 0 | I44: 0 | K44: 0
C45: Closing Net Book Value (DRC) | D45: =+D30-D42 -> 0 | E45: 0 | F45: 0 | G45: 0 | H45: 0 | I45: 0 | K45: 0
C47: Section 2: Source of GRC Estimate
C49: Allocate the closing Gross Replacement Cost estimate (GRC) value to the appropriate calculation basis used
C51: Highway Asset Types: (Level 1 categories defined in Table 4.1 "Classification of highway assets", para 4.2.3, pgs 34 to 36, of the transport Code) | D51: Actual inventory | E51: Sample inventory | F51: Estimated values | G51: Combination | H51: Closing GRC | K51: Estimated percentage of work completed
K52: (%)
C53: Carriageway | D53: =IF($D$31="Actual Inventory",$D$30,0) -> 0 | E53: =IF($D$31="Sample Inventory",$D$30,0) -> 0 | F53: =IF($D$31="Estimated Values",$D$30,0) -> 0 | G53: =IF($D$31="Combination",$D$30,0) -> 0 | H53: =SUM(D53:G53) -> 0 | I53: =IF(H53=D30," "," GRC not allocated") -> 
C54: Footways + Cycleways | D54: =IF($E$31="Actual Inventory",$E$30,0) -> 0 | E54: =IF($E$31="Sample Inventory",$E$30,0) -> 0 | F54: =IF($E$31="Estimated Values",$E$30,0) -> 0 | G54: =IF($E$31="Combination",$E$30,0) -> 0 | H54: 0 | I54: =IF(H54=E30," "," GRC not allocated") -> 
C55: Structures | D55: =IF($F$31="Actual Inventory",$F$30,0) -> 0 | E55: =IF($F$31="Sample Inventory",$F$30,0) -> 0 | F55: =IF($F$31="Estimated Values",$F$30,0) -> 0 | G55: =IF($F$31="Combination",$F$30,0) -> 0 | H55: 0 | I55: =IF(H55=F30," "," GRC not allocated") -> 
C56: Lighting | D56: =IF($G$31="Actual Inventory",$G$30,0) -> 0 | E56: =IF($G$31="Sample Inventory",$G$30,0) -> 0 | F56: =IF($G$31="Estimated Values",$G$30,0) -> 0 | G56: =IF($G$31="Combination",$G$30,0) -> 0 | H56: 0 | I56: =IF(H56=G30," "," GRC not allocated") -> 
C57: Traffic management | D57: =IF($H$31="Actual Inventory",$H$30,0) -> 0 | E57: =IF($H$31="Sample Inventory",$H$30,0) -> 0 | F57: =IF($H$31="Estimated Values",$H$30,0) -> 0 | G57: =IF($H$31="Combination",$H$30,0) -> 0 | H57: 0 | I57: =IF(H57=H30," "," GRC not allocated") -> 
C58: Street furniture | D58: =IF($I$31="Actual Inventory",$I$30,0) -> 0 | E58: =IF($I$31="Sample Inventory",$I$30,0) -> 0 | F58: =IF($I$31="Estimated Values",$I$30,0) -> 0 | G58: =IF($I$31="Combination",$I$30,0) -> 0 | H58: 0 | I58: =IF(H58=I30," "," GRC not allocated") -> 
C59: Land | D59: =IF($J$31="Actual Inventory",$J$30,0) -> 0 | E59: =IF($J$31="Sample Inventory",$J$30,0) -> 0 | F59: =IF($J$31="Estimated Values",$J$30,0) -> 0 | G59: =IF($J$31="Combination",$J$30,0) -> 0 | H59: 0 | I59: =IF(H59=J30," "," GRC not allocated") -> 
C60: Total | D60: =SUM(D53:D59) -> 0 | E60: =SUM(E53:E59) -> 0 | F60: 0 | G60: 0 | H60: =SUM(H53:H59) -> 0 | I60: =IF(H60=K30," "," GRC not allocated") ->  | K60: =SUM(K53:K59) -> 0
C62: Rounding Validation check: | D62: =IF((D60<10000000)*OR(E60<10000000),"Ok","You have reported more than £10bn of GRC data, please ensure this is correct, and that you have not failed to round to thousands.") -> Ok
C63: Notes/Evidence
C66: CIPFA Questionnaire
C68: Please respond to the questions in respect of the CIPFA Code of Practice on Transport Infrastructure Assets and supporting materials below, using a scale of 1 to 5 as follows:
C69: 1 = Strongly Disagree; 2 = Disagree; 3 = Neither agree nor disagree; 4 = Agree; 5 = Strongly Agree
K70: Answer 1 to 5
C71: 1. The tools to support the implementation of the Code are helpful and appropriate.
C73: 2. All those who ‘need to know’ at this authority are aware of the Code and its requirements
C74: and implications, including senior management, finance practitioners and asset
C75: management/engineering practitioners.
C77: 3. The financial and technical practitioners are clear about their roles and work together to
C78: produce the required information.
C80: 4. This authority is actively working with other authorities in a regional group (or similar) to
C81: support and benchmark our work on asset valuation and implementing the Code.
C83: 5. This authority will be able to fully implement the Code to the published timescales including
C84: full implementation in their Statement of Accounts from 2016-17
C86: 6. This authority has sufficient, appropriate and robust inventory data to implement the Code
C87: on the following assets:
C88: • Carriageways
C89: • Footways & Cycle tracks
C90: • Structures
C91: • Lighting
C92: • Traffic Management
C93: • Land
C95: 7. For the areas in question 6 where appropriate inventory data is not yet available, this
C96: authority is confident that plans are in place to gather this data and it will be available
C97: to fully implement the Code to the published timescales.
C99: 8. This authority has sufficient, appropriate and robust condition or age data (as appropriate)
C100: to implement the Code on the following assets:
C101: • Carriageways
C102: • Footways & Cycle tracks
C103: • Structures
C104: • Lighting
C105: • Traffic Management
C107: 9. For the areas in question 8 where appropriate condition or age data is not yet available, this
C108: authority is confident that plans are in place to gather this data and it will be available to fully
C109: implement the Code to the published timescales.
C111: 10. This authority has a fully developed and implemented TAMP/ HAMP.
C113: 11. Are there any further issues arising from the Code or where more detailed guidance or exemplification would be helpful? (Please keep within the space provided)
C115: COMMENTS
B125: Change Register | D125: Change
B126: Version 2.5, Nov 2015 | D126: * Help button in title bar ( ὶ ) button
D127: * Cell information: (?) button
D128: * Auto Calculate : Depreciation written out to the Revaluation Reserve
D129: *'Type Over' cells in GRC and DRC totals

Sheet Carriageways & Footways GRC
C3: Carriageways, Footways & Cycleways GRC
C4: Step 1 | D4: Enter your CARRIAGEWAY LENGTH and WIDTH or AREA
C5: Step 2 | D5: Enter your FOOTWAY LENGTH and WIDTH, or AREA
C6: Step 3 | D6: Select your REGION and AUTHORITY - this will apply a regional factor.
C9: Note 1 | D9: Drainage has been included within the default carriageway rates and so will not appear in Street Furniture.
C10: Note 2 | D10: For Cycleways (bound and unbound), each local authority should enter a GRC rate as appropriate. The rate may be taken from the list of footway rates provided or a locally provided value may be entered instead.
C13: CARRIAGEWAYS | J13: LINEAR ITEMS | M13: FOOTWAYS & CYCLEWAYS
C14: Road Classification | D14: Carriageway Length | E14: Carriageway Width | F14: Calculated Area | G14: HAMFIG Default GRC Rate | H14: GRC Value | J14: HAMFIG Default GRC Rate | K14: GRC Value | M14: Footway Hierarchy | N14: Footway Length | O14: Footway Width | P14: Calculated Area | Q14: HAMFIG Default GRC Rate | R14: GRC Value
D18: (km) | E18: (m) | F18: (m²) | G18: (£/m²) | H18: (£,000s) | J18: (£/m) | K18: (£,000s) | N18: (Km) | O18: (m) | P18: (m2) | Q18: (£/m²) | R18: (£,000s)
C19: M (all) | F19: =D19*E19*1000 -> 0 | G19: =VLOOKUP(C19,'GRC Rates'!A:B,2,FALSE) -> 160.91 | H19: =F19*G19/1000 -> 0 | J19: =VLOOKUP(C19,'GRC Rates'!A:C,3,FALSE) -> 715.13 | K19: =D19*J19 -> 0 | M19: 1A Urban | P19: =N19*O19*1000 -> 0 | Q19: =VLOOKUP(M19,'GRC Rates'!D:E,2,FALSE) -> 251.69 | R19: =P19*Q19/1000 -> 0
C20: A Urban | F20: 0 | G20: =VLOOKUP(C20,'GRC Rates'!A:B,2,FALSE) -> 136.04 | H20: =F20*G20/1000 -> 0 | J20: =VLOOKUP(C20,'GRC Rates'!A:C,3,FALSE) -> 604.6 | K20: =D20*J20 -> 0 | M20: 1 Urban | P20: =N20*O20*1000 -> 0 | Q20: =VLOOKUP(M20,'GRC Rates'!D:E,2,FALSE) -> 82.35 | R20: =P20*Q20/1000 -> 0
C21: A Rural | F21: 0 | G21: =VLOOKUP(C21,'GRC Rates'!A:B,2,FALSE) -> 107.73 | H21: 0 | J21: =VLOOKUP(C21,'GRC Rates'!A:C,3,FALSE) -> 457.98 | K21: 0 | M21: 1 Rural | P21: =N21*O21*1000 -> 0 | Q21: =VLOOKUP(M21,'GRC Rates'!D:E,2,FALSE) -> 74.84 | R21: 0
C22: B Urban | F22: 0 | G22: =VLOOKUP(C22,'GRC Rates'!A:B,2,FALSE) -> 126.86 | H22: 0 | J22: =VLOOKUP(C22,'GRC Rates'!A:C,3,FALSE) -> 554.47 | K22: 0 | M22: 2 Urban | P22: 0 | Q22: =VLOOKUP(M22,'GRC Rates'!D:E,2,FALSE) -> 75.65 | R22: 0
C23: B Rural | F23: 0 | G23: =VLOOKUP(C23,'GRC Rates'!A:B,2,FALSE) -> 100.16 | H23: 0 | J23: =VLOOKUP(C23,'GRC Rates'!A:C,3,FALSE) -> 255.15 | K23: 0 | M23: 2 Rural | P23: 0 | Q23: =VLOOKUP(M23,'GRC Rates'!D:E,2,FALSE) -> 68.7 | R23: 0
C24: C Urban | F24: 0 | G24: =VLOOKUP(C24,'GRC Rates'!A:B,2,FALSE) -> 104.7 | H24: 0 | J24: =VLOOKUP(C24,'GRC Rates'!A:C,3,FALSE) -> 482.58 | K24: 0 | M24: 3 Urban | P24: 0 | Q24: =VLOOKUP(M24,'GRC Rates'!D:E,2,FALSE) -> 67.44 | R24: 0
C25: C Rural | F25: 0 | G25: =VLOOKUP(C25,'GRC Rates'!A:B,2,FALSE) -> 79.92 | H25: 0 | J25: =VLOOKUP(C25,'GRC Rates'!A:C,3,FALSE) -> 217.98 | K25: 0 | M25: 3 Rural | P25: 0 | Q25: =VLOOKUP(M25,'GRC Rates'!D:E,2,FALSE) -> 61.24 | R25: 0
C26: U/C Urban | F26: 0 | G26: =VLOOKUP(C26,'GRC Rates'!A:B,2,FALSE) -> 96.69 | H26: 0 | J26: =VLOOKUP(C26,'GRC Rates'!A:C,3,FALSE) -> 352.39 | K26: 0 | M26: 4 Urban | P26: 0 | Q26: =VLOOKUP(M26,'GRC Rates'!D:E,2,FALSE) -> 64.75 | R26: 0
C27: U/C Rural | F27: 0 | G27: =VLOOKUP(C27,'GRC Rates'!A:B,2,FALSE) -> 74.87 | H27: 0 | J27: =VLOOKUP(C27,'GRC Rates'!A:C,3,FALSE) -> 166.08 | K27: 0 | M27: 4 Rural | P27: 0 | Q27: =VLOOKUP(M27,'GRC Rates'!D:E,2,FALSE) -> 61.02 | R27: 0
M28: Cycleways Bound | P28: 0 | R28: =P28*Q28/1000 -> 0
M29: Cycleways Unbound | P29: 0 | R29: =P29*Q29/1000 -> 0
C30: Total - Without Factor Applied | F30: =SUM(F19:F27) -> 0 | H30: =SUM(H19:H27) -> 0 | K30: =SUM(K19:K27) -> 0 | M30: Total - Without Factor Applied | P30: =SUM(P19:P29) -> 0 | R30: =SUM(R19:R29) -> 0
C31: Total - With Factor Applied | H31: =SUM(H19:H27)*P40/100 -> 0 | K31: =SUM(K19:K27)*P40/100 -> 0 | M31: Total - With Factor Applied | R31: =SUM(R19:R29)*P40/100 -> 0
C33: Notes/Evidence | M33: SUMMARY
M34: =HLOOKUP(M35,'GRC Rates'!$F:$G,2,FALSE) -> Inflation - Q1 2010 to Q2 2017 | P34: =VLOOKUP(M34,'GRC Rates'!F:G,2,FALSE) -> 1.154929577
M35: Inflation year
M36: Select a Region | P36: Select_a_Region
M38: Select an Authority | P38: Pick your Authority
M40: Regional Factor | P40: =VLOOKUP(P38,'Regional Factors'!B:C,2,FALSE) -> 0
M42: Carriageway GRC (£,000s) (including linear items) | P42: =IFERROR(+ROUND(($H$30+$K$30)*$P$34*($P$40/100),0)," na") -> 0
M44: Footway GRC (£,000s) | P44: =IFERROR(+ROUND($R$30*$P$34*($P$40/100),0),"na") -> 0
B48: Change Register | D48: Change
B49: Version 2.5, Nov 2015 | D49: *Help button in title bar ( ὶ ) button
D50: *Cell information (?) button
D51: *Allow Manual input of Carriageways Area and Footways/Cycleways Area
D52: *Cycleways Bound and Unbound added to 'Footways and Cycleways' table
D53: *Totals are also calculated with Regional Factor applied
D54: *External list reference to Valuation Variable workbook to allow for external updates on rates

Sheet Footways DRC
C3: Footways and Cycleways (DRC)
C4: Step 1 | D4: For Bituminous, Other Bituminous and other materials such as Mass Concrete (see Note 2 below) enter the CURRENT AREA per Asset Type
C5: Step 2 | D5: Then enter the Local Average Treatment Cost per Asset Type
C6: Step 3 | D6: Then enter an ESTIMATED LIFESPAN
C7: Step 4 | D7: Then enter a SUM OF ALL TREATMENTS IN LIFECYCLE PLAN per Asset Type
C8: Step 5 | D8: For Modular Slabs, Block Paving and Other Modular enter the CURRENT AREA per Asset Type
C9: Step 6 | D9: Then enter the PREVIOUS AREA per Asset Type
C10: Step 7 | D10: Then enter the Local Average Treatment Cost per Asset Type
C12: Note 1 | D12: For Modular footways, if the Change in Area is greater than zero then the Annual Depreciation is the Change in Area multiplied by the Local Average Treatment Cost. If the Change in Area is less than or equal to zero then the Annual Depreciation is Zero.
C13: Note 2 | D13: For Mass Concrete: The lifecycle planning approach to determining deterioration should be used. Treatments can be applied to mass concrete (e.g. surface dressed or planed out and inlayed) therefore the ability to develop a lifecycle plan based on treatments is the preferred option
C14: Note 3 | D14: Add Cycleways Bound and Unbound in Other Bituminous or Other Modular as appropriate to calculate a DRC Value
C15: Note 4 | D15: Capture the evidence used to determine locally derived inputs, e.g. local rates, sources of inventory data, sources of condition data etc as well as any assumptions made or issues to resolve etc.
C17: Type | D17: Band | E17: Current Area (m²) | F17: Previous Area (m²) | G17: Change in Area (m²) | H17: Local Average Treatment Cost (£/m²) | I17: Accumulated Depreciation (£) | J17: Estimated Lifespan of all Treatments in Lifecycle Plan (years) | K17: Sum of all Treatments in Lifecycle Plan (£/m²) | L17: Annual Depreciation (£)
C20: Bituminous | D20: Red | I20: =H20*E20 -> 0 | L20: =IF(J20=0,0,(E20*K20)/J20) -> 0
C21: Bituminous | D21: Amber | I21: =H21*E21 -> 0 | L21: =IF(J21=0,0,(E21*K21)/J21) -> 0
C22: Bituminous | D22: Yellow | I22: 0 | L22: 0
C23: Bituminous | D23: Green | H23: =IF(H22>0,H22*0.5,"£0.00") -> £0.00 | I23: 0 | L23: 0
C24: Other Bituminous 1 | D24: Red | I24: =H24*E24 -> 0 | L24: =IF(J24=0,0,(E24*K24)/J24) -> 0
C25: Bituminous | D25: Amber | I25: =H25*E25 -> 0 | L25: =IF(J25=0,0,(E25*K25)/J25) -> 0
C26: Bituminous | D26: Yellow | I26: 0 | L26: =IF(J26=0,0,(E26*K26)/J26) -> 0
C27: Bituminous | D27: Green | H27: =IF(H26>0,H26*0.5,"£0.00") -> £0.00 | I27: 0 | L27: 0
C28: Other Bituminous 2 | D28: Red | I28: =H28*E28 -> 0 | L28: =IF(J28=0,0,(E28*K28)/J28) -> 0
C29: Bituminous | D29: Amber | I29: =H29*E29 -> 0 | L29: =IF(J29=0,0,(E29*K29)/J29) -> 0
C30: Bituminous | D30: Yellow | I30: 0 | L30: =IF(J30=0,0,(E30*K30)/J30) -> 0
C31: Bituminous | D31: Green | H31: =IF(H30>0,H30*0.5,"£0.00") -> £0.00 | I31: 0 | L31: 0
C32: Modular Slabs | D32: Red | G32: =E32-F32 -> 0 | I32: =H32*E32 -> 0 | L32: =IF(G32>0,(G32*H32),0) -> 0
D33: Amber | G33: =E33-F33 -> 0 | I33: 0 | L33: =IF(G33>0,(G33*H33),0) -> 0
D34: Yellow | G34: 0 | I34: 0 | L34: =IF(G34>0,(G34*H34),0) -> 0
D35: Green | G35: 0 | H35: £0.00 | I35: 0 | L35: 0
C36: Modular Block Paving | D36: Red | G36: 0 | I36: 0 | L36: 0
D37: Amber | G37: 0 | I37: 0 | L37: 0
D38: Yellow | G38: 0 | I38: 0 | L38: 0
D39: Green | G39: 0 | H39: £0.00 | I39: 0 | L39: 0
C40: Other Modular 1 | D40: Red | G40: 0 | I40: 0 | L40: 0
D41: Amber | G41: 0 | I41: 0 | L41: 0
D42: Yellow | G42: 0 | I42: 0 | L42: =IF(G42>0,(G42*H42),0) -> 0
D43: Green | G43: 0 | H43: £0.00 | I43: 0 | L43: 0
C44: Other Modular 2 | D44: Red | G44: =E44-F44 -> 0 | I44: =H44*E44 -> 0 | L44: =IF(G44>0,(G44*H44),0) -> 0
D45: Amber | G45: 0 | I45: 0 | L45: 0
D46: Yellow | G46: 0 | I46: 0 | L46: 0
D47: Green | G47: 0 | H47: £0.00 | I47: 0 | L47: =IF(G47>0,(G47*H47),0) -> 0
C48: Other (Mass Concrete) | D48: Red | G48: 0 | I48: 0 | L48: =IF(J48=0,0,(E48*K48)/J48) -> 0
D49: Amber | G49: 0 | I49: 0 | L49: =IF(J49=0,0,(E49*K49)/J49) -> 0
D50: Yellow | G50: 0 | I50: 0 | L50: 0
D51: Green | G51: 0 | I51: 0 | L51: 0
C52: SUB TOTAL: BITUMINOUS | I52: =SUM(I20:I31) -> 0 | L52: =SUM(L20:L31) -> 0
C53: SUB TOTAL: MODULAR | I53: =SUM(I32:I47) -> 0 | L53: =SUM(L32:L47) -> 0
C54: SUB TOTAL: MASS CONCRETE | I54: =SUM(I48:I51) -> 0 | L54: =SUM(L48:L51) -> 0
C55: GROSS REPLACEMENT COST (GRC) (£,000s) | E55: ='Carriageways & Footways GRC'!$P$44 -> 0
C56: ACCUMULATED DEPRECIATION (£,000s) | E56: =SUM(I20:I51)/1000 -> 0
C57: ANNUAL DEPRECIATION (£,000s) | E57: =SUM(L20:L51)/1000 -> 0
C58: DEPRECIATED REPLACEMENT COST (DRC) (£,000s) | E58: =E55-E56 -> 0
C60: Notes/Evidence
B69: Change Register | D69: Change
B70: Version 2.5, Nov 2015 | D70: * Help button in title bar ( ὶ ) button
D71: *Cell information (?) button
D72: * Sub totals added for each 'Type' of Footway

Sheet Street Lighting GRC & DRC
C3: Street Lighting
C4: Step 1 | D4: Insert the number of additional rows required for each section
C5: Step 2 | D5: Complete the Yellow cells with your inventory data
C7: Note 1 | D7: The INSERT button will allow you to bulk insert any number of rows per type of Street Lighting
C8: Note 2 | D8: The DELETE button will allow you to delete selected rows only, providing there is one unique asset type remaining
C9: Note 3 | D9: The RESET button will set the table back to one unique asset of each type and clear all entered data
D11: Type in the Number of rows required
D12: Number of additional Street Lighting Rows
D13: Number of additional Illuminated Signs Rows
D14: Number of additional Other Rows
C16: Calculation Of GRC and DRC | D16: Column1 | E16: No of Units | F16: Replacement Rate/Unit (£) | G16: Estimated Age (Years) | H16: Estimated Lifespan (Years) | I16: Age/ Lifespan | J16: GRC Value (£) | K16: Annual Depreciation (£) | L16: Accumulated Depreciation (£) | M16: DRC Value (£)
C17: Street Lighting | D17: Please select from list or type a description | I17: =IFERROR(G17/H17,0) -> 0 | J17: =F17*E17 -> 0 | K17: =IFERROR(J17/H17,0) -> 0 | L17: =IFERROR(MIN(G17,H17)*K17,0) -> 0 | M17: =J17-L17 -> 0
C18: Illuminated Signs | D18: Please select from list or type a description | I18: =IFERROR(G18/H18,0) -> 0 | J18: 0 | K18: =IFERROR(J18/H18,0) -> 0 | L18: =IFERROR(MIN(G18,H18)*K18,0) -> 0 | M18: =J18-L18 -> 0
C19: Other | D19: Add Additional Assets Here | I19: =IFERROR(G19/H19,0) -> 0 | J19: =F19*E19 -> 0 | K19: =IFERROR(J19/H19,0) -> 0 | L19: =IFERROR(MIN(G19,H19)*K19,0) -> 0 | M19: =J19-L19 -> 0
C20: SUB TOTAL: STREET LIGHTING | D20: =SUMIF(SLGRC[Calculation Of GRC and DRC],MID(SLGRC[[#This Row],[Calculation Of GRC and DRC]],12,20),SLGRC[GRC Value (£)]) -> 0
C21: SUB TOTAL: ILLUMINATED SIGNS | D21: =SUMIF(SLGRC[Calculation Of GRC and DRC],MID(SLGRC[[#This Row],[Calculation Of GRC and DRC]],12,20),SLGRC[GRC Value (£)]) -> 0
C22: SUB TOTAL: OTHER | D22: =SUMIF(SLGRC[Calculation Of GRC and DRC],MID(SLGRC[[#This Row],[Calculation Of GRC and DRC]],12,20),SLGRC[GRC Value (£)]) -> 0
C23: GROSS REPLACEMENT COST (GRC) (£,000s) | D23: =SUM(SLGRC[GRC Value (£)])/1000 -> 0
C24: ACCUMULATED DEPRECIATION (£,000s) | D24: =SUM(SLGRC[Accumulated Depreciation (£)])/1000 -> 0
C25: ANNUAL DEPRECIATION (£,000s) | D25: =SUM(SLGRC[Annual Depreciation (£)])/1000 -> 0
C26: DEPRECIATED REPLACEMENT COST (DRC) (£,000s) | D26: =SUM(SLGRC[DRC Value (£)])/1000 -> 0
C28: Notes/Evidence
C38: Change Register | D38: Change
C39: Version 2.5, Nov 2015 | D39: * Help button in title bar ( ὶ ) button
D40: * Add additional rows
D41: * Delete Rows
D42: *Reset table function
D43: * Sub totals
D44: * Table layout to allow authorities to copy and paste data from another worksheet

Sheet Traffic Mangt Eqpt GRC & DRC
C3: Traffic Management Equipment
C4: Step 1 | D4: Insert the number of rows required for each section
C5: Step 2 | D5: Complete the Yellow cells with your inventory data
C7: Note 1 | D7: The INSERT button will allow you to bulk insert any number of rows per type of Traffic Mangement Equipment
C8: Note 2 | D8: The DELETE button will allow you to delete selected rows only, providing there is one unique asset type remaining
C9: Note 3 | D9: The RESET button will set the table back to one unique asset of each type and clear all entered data
D11: Type in the Number of rows required
D12: Number of additional Traffic Signals Rows
D13: Number of additional Crossings, Cameras, Junctions and EMS/VMS Rows
D14: Number of additional Information Systems Rows
D15: Number of additional InStations Rows
D16: Number of additional Other Rows
C19: Calculation of GRC and DRC | D19: Column1 | E19: No of Units | F19: Replacement Rate/Unit (£) | G19: Estimated Age (Years) | H19: Estimated Lifespan (Years) | I19: Age/ Lifespan | J19: GRC Value (£) | K19: Annual Depreciation (£) | L19: Accumulated Depreciation (£) | M19: DRC Value (£)
C20: Traffic Signals | D20: Please select from list or type a description | I20: =IFERROR(G20/H20,0) -> 0 | J20: =F20*E20 -> 0 | K20: =IFERROR(J20/H20,0) -> 0 | L20: =IFERROR(MIN(G20,H20)*K20,0) -> 0 | M20: =J20-L20 -> 0
C21: Crossings, Cameras, Junctions and EMS/VMS | D21: Please select from list or type a description | I21: =IFERROR(G21/H21,0) -> 0 | J21: =F21*E21 -> 0 | K21: =IFERROR(J21/H21,0) -> 0 | L21: =IFERROR(MIN(G21,H21)*K21,0) -> 0 | M21: =J21-L21 -> 0
C22: Information Systems | D22: Please select from list or type a description | I22: =IFERROR(G22/H22,0) -> 0 | J22: =F22*E22 -> 0 | K22: =IFERROR(J22/H22,0) -> 0 | L22: =IFERROR(MIN(G22,H22)*K22,0) -> 0 | M22: =J22-L22 -> 0
C23: InStations | D23: Please select from list or type a description | I23: =IFERROR(G23/H23,0) -> 0 | J23: =F23*E23 -> 0 | K23: =IFERROR(J23/H23,0) -> 0 | L23: =IFERROR(MIN(G23,H23)*K23,0) -> 0 | M23: =J23-L23 -> 0
C24: Other | D24: Add Additional Assets Here | I24: =IFERROR(G24/H24,0) -> 0 | J24: =F24*E24 -> 0 | K24: =IFERROR(J24/H24,0) -> 0 | L24: =IFERROR(MIN(G24,H24)*K24,0) -> 0 | M24: =J24-L24 -> 0
C25: SUB TOTAL: TRAFFIC SIGNALS | D25: =SUMIF(TrafficM[Calculation of GRC and DRC],MID(TrafficM[[#This Row],[Calculation of GRC and DRC]],12,50),TrafficM[GRC Value (£)]) -> 0
C26: SUB TOTAL: CROSSINGS, CAMERAS, JUNCTIONS AND EMS/VMS | D26: =SUMIF(TrafficM[Calculation of GRC and DRC],MID(TrafficM[[#This Row],[Calculation of GRC and DRC]],12,50),TrafficM[GRC Value (£)]) -> 0
C27: SUB TOTAL: INFORMATION SYSTEMS | D27: =SUMIF(TrafficM[Calculation of GRC and DRC],MID(TrafficM[[#This Row],[Calculation of GRC and DRC]],12,50),TrafficM[GRC Value (£)]) -> 0
C28: SUB TOTAL: INSTATIONS | D28: =SUMIF(TrafficM[Calculation of GRC and DRC],MID(TrafficM[[#This Row],[Calculation of GRC and DRC]],12,50),TrafficM[GRC Value (£)]) -> 0
C29: SYB TOTAL: OTHER | D29: =SUMIF(TrafficM[Calculation of GRC and DRC],MID(TrafficM[[#This Row],[Calculation of GRC and DRC]],12,50),TrafficM[GRC Value (£)]) -> 0
C30: GROSS REPLACEMENT COST (GRC) (£,000s) | D30: =SUM(TrafficM[GRC Value (£)])/1000 -> 0
C31: ACCUMULATED DEPRECIATION (£,000s) | D31: =SUM(TrafficM[Accumulated Depreciation (£)])/1000 -> 0
C32: ANNUAL DEPRECIATION (£,000s) | D32: =SUM(TrafficM[Annual Depreciation (£)])/1000 -> 0
C33: DEPRECIATED REPLACEMENT COST (DRC) (£,000s) | D33: =SUM(TrafficM[DRC Value (£)])/1000 -> 0
C35: Notes/Evidence
C42: Change Register | D42: Change
C43: Version 2.5, Nov 2015 | D43: * Help button in title bar ( ὶ ) button
D44: * Add additional rows
D45: * Delete Rows
D46: * Reset table function
D47: * Sub totals
D48: * Table layout to allow authorities to copy and paste data from another worksheet

Sheet Street Furniture GRC & DRC
C3: Street Furniture
C4: This sheet will allow you to make the most appropriate selection to input Street Furniture data depending on the status of your current inventory. Please either add your own inventory data or use the sample data, that best matches your own circumstances, provided by one of the authorities below.
C6: PLEASE ONLY COMPLETE ONE SHEET FOR STREET FURNITURE | K6: Data Selected: | L6: Own Data
F8: Own Inventory Data - to be used for authorities with good data.
D11: Alternatively you can use data collected by other authorities as default data for estimating the value of your Street Furniture assets, particularly where you may not have sufficient data at present.
D13: Should you be in a position to submit inventory data of your own then this will help us to provide better default rates for use by others. To do this please enter you data into the 'SF - Own Data' Sheet and return this to HAMFIG@atkinsglobal.com
F15: Derbyshire - use this if you are a predominantly rural Shire County with few dual carriageways.
F18: Hertfordshire - use this if you are a mixed Shire County with many designed A roads / dual carriageways.
F21: Medway - use this if you are predominantly an urban authority.

Sheet SF - Own Data
C3: Street Furniture - Own Data | N3: Adding Additional Rows | U3: Network Length (km)
C4: Step 1 | D4: Enter the Number of Additional Assets Rows required in 'Adding Additional Rows' box and press INSERT ROWS | U4: Road Type/Classification | W4: Urban | X4: Rural
C5: Step 2 | D5: Enter the Urban/Rural NETWORK LENGTHS per Road Type/Classification if this is not already populated | N5: Number of Additional Assets rows | U5: A | W5: =IF('Carriageways & Footways GRC'!D20>0,'Carriageways & Footways GRC'!D20,"Please enter a length") -> Please enter a length | X5: =IF('Carriageways & Footways GRC'!D21>0,'Carriageways & Footways GRC'!D21,"Please enter a length") -> Please enter a length
C6: Step 3 | D6: Enter the NUMBER OF ASSETS PER ROAD CLASSIFICATION per Asset Type | U6: B | W6: =IF('Carriageways & Footways GRC'!D22>0,'Carriageways & Footways GRC'!D22,"Please enter a length") -> Please enter a length | X6: =IF('Carriageways & Footways GRC'!D23>0,'Carriageways & Footways GRC'!D23,"Please enter a length") -> Please enter a length
C7: Step 4 | D7: Enter Local Average Treatment Cost/Unit, Estimated Age of Assets, and Estimated Lifespan for each asset type. | U7: C | W7: =IF('Carriageways & Footways GRC'!D24>0,'Carriageways & Footways GRC'!D24,"Please enter a length") -> Please enter a length | X7: =IF('Carriageways & Footways GRC'!D25>0,'Carriageways & Footways GRC'!D25,"Please enter a length") -> Please enter a length
C8: Step 5 | D8: Add any comments to the comments box provided at the bottom of the sheet | U8: UC | W8: =IF('Carriageways & Footways GRC'!D26>0,'Carriageways & Footways GRC'!D26,"Please enter a length") -> Please enter a length | X8: =IF('Carriageways & Footways GRC'!D27>0,'Carriageways & Footways GRC'!D27,"Please enter a length") -> Please enter a length
C9: Note 1 | D9: If you have Street Furniture assets on Motorways then please incorporate under A Roads. | U9: Total Length | W9: =SUM(W5:W8) -> 0 | X9: =SUM(X5:X8) -> 0
C10: Note 2 | D10: The DELETE button will allow you to delete selected rows only, providing there is one unique asset type remaining | U10: Grand total | W10: =SUM(W9:X9) -> 0
C13: Asset Type | D13: Sub Group | E13: Number of Assets per Road Classification | M13: Number of Assets per km of Road Classification | U13: GRC and DRC Calculation
E14: A | G14: B | I14: C | K14: UC | M14: A | O14: B | Q14: C | S14: UC
C15: Asset Type | D15: Sub Group | E15: Urban | F15: Rural | G15: Urban | H15: Rural | I15: Urban2 | J15: Rural2 | K15: Urban3 | L15: Rural3 | M15: Urban Per Km | N15: Rural Per Km | O15: Urban Per Km2 | P15: Rural Per Km2 | Q15: Urban Per Km3 | R15: Rural Per Km3 | S15: Urban Per Km4 | T15: Rural Per Km4 | U15: Total Assets | V15: Local Average Treatment Cost/Unit (£) | W15: Estimated Age (Years) | X15: Estimated Lifespan (Years) | Y15: Age/ Lifespan | Z15: GRC Value (£) | AA15: Annual Depreciation (£) | AB15: Accumulated Depreciation (£) | AC15: DRC Value (£)
C16: Traffic Signs Non-Illuminated | D16: Warning | M16: =IFERROR(E16/$W$5,0) -> 0 | N16: =IFERROR(F16/$X$5,0) -> 0 | O16: =IFERROR(G16/$W$6,0) -> 0 | P16: =IFERROR(H16/$X$6,0) -> 0 | Q16: =IFERROR(I16/$W$7,0) -> 0 | R16: =IFERROR(J16/$X$7,0) -> 0 | S16: =IFERROR(K16/$W$8,0) -> 0 | T16: =IFERROR(L16/$X$8,0) -> 0 | U16: =SUM(E16:L16) -> 0 | Y16: =IF(W16=0,0,(W16/X16)) -> 0 | Z16: =U16*V16 -> 0 | AA16: =IFERROR(Z16/X16,0) -> 0 | AB16: =IFERROR(MIN(W16,X16)*AA16,0) -> 0 | AC16: =Z16-AB16 -> 0
D17: Regulatory | M17: =IFERROR(E17/$W$5,0) -> 0 | N17: =IFERROR(F17/$X$5,0) -> 0 | O17: =IFERROR(G17/$W$6,0) -> 0 | P17: =IFERROR(H17/$X$6,0) -> 0 | Q17: =IFERROR(I17/$W$7,0) -> 0 | R17: =IFERROR(J17/$X$7,0) -> 0 | S17: =IFERROR(K17/$W$8,0) -> 0 | T17: =IFERROR(L17/$X$8,0) -> 0 | U17: 0 | Y17: =IF(W17=0,0,(W17/X17)) -> 0 | Z17: =U17*V17 -> 0 | AA17: =IFERROR(Z17/X17,0) -> 0 | AB17: =IFERROR(MIN(W17,X17)*AA17,0) -> 0 | AC17: =Z17-AB17 -> 0
D18: Directional | M18: 0 | N18: 0 | O18: 0 | P18: 0 | Q18: 0 | R18: 0 | S18: 0 | T18: 0 | U18: 0 | Y18: =IF(W18=0,0,(W18/X18)) -> 0 | Z18: 0 | AA18: 0 | AB18: 0 | AC18: 0
D19: Informatory | M19: 0 | N19: 0 | O19: 0 | P19: 0 | Q19: 0 | R19: 0 | S19: 0 | T19: 0 | U19: 0 | Y19: 0 | Z19: 0 | AA19: 0 | AB19: =IFERROR(MIN(W19,X19)*AA19,0) -> 0 | AC19: 0
D20: Boundary | M20: 0 | N20: 0 | O20: 0 | P20: 0 | Q20: 0 | R20: 0 | S20: 0 | T20: 0 | U20: 0 | Y20: 0 | Z20: 0 | AA20: 0 | AB20: 0 | AC20: 0
D21: Non DCC | M21: 0 | N21: 0 | O21: 0 | P21: 0 | Q21: 0 | R21: 0 | S21: 0 | T21: 0 | U21: 0 | Y21: 0 | Z21: 0 | AA21: 0 | AB21: 0 | AC21: 0
D22: Parking Directional | M22: 0 | N22: 0 | O22: 0 | P22: 0 | Q22: 0 | R22: 0 | S22: 0 | T22: 0 | U22: 0 | Y22: 0 | Z22: 0 | AA22: 0 | AB22: 0 | AC22: 0
D23: Not Assessed | M23: 0 | N23: 0 | O23: 0 | P23: 0 | Q23: 0 | R23: 0 | S23: 0 | T23: 0 | U23: 0 | Y23: 0 | Z23: 0 | AA23: 0 | AB23: 0 | AC23: 0
C24: PROW Signs | D24: Metal | M24: 0 | N24: 0 | O24: 0 | P24: 0 | Q24: 0 | R24: 0 | S24: 0 | T24: 0 | U24: 0 | Y24: 0 | Z24: 0 | AA24: 0 | AB24: 0 | AC24: 0
D25: Timber | M25: 0 | N25: 0 | O25: 0 | P25: 0 | Q25: 0 | R25: 0 | S25: 0 | T25: 0 | U25: 0 | Y25: 0 | Z25: 0 | AA25: 0 | AB25: 0 | AC25: 0
C26: Pedestrian Barriers (Lin m) | D26: Standard PGR1 | M26: 0 | N26: 0 | O26: 0 | P26: 0 | Q26: 0 | R26: 0 | S26: 0 | T26: 0 | U26: 0 | Y26: 0 | Z26: 0 | AA26: 0 | AB26: 0 | AC26: 0
D27: Visirail PGR3 | M27: 0 | N27: 0 | O27: 0 | P27: 0 | Q27: 0 | R27: 0 | S27: 0 | T27: 0 | U27: 0 | Y27: 0 | Z27: 0 | AA27: 0 | AB27: 0 | AC27: 0
C28: Safety Fencing (Lin m) | D28: Box Single | M28: 0 | N28: 0 | O28: 0 | P28: 0 | Q28: 0 | R28: 0 | S28: 0 | T28: 0 | U28: 0 | Y28: 0 | Z28: 0 | AA28: 0 | AB28: 0 | AC28: 0
D29: Box Double | M29: 0 | N29: 0 | O29: 0 | P29: 0 | Q29: 0 | R29: 0 | S29: 0 | T29: 0 | U29: 0 | Y29: 0 | Z29: 0 | AA29: 0 | AB29: 0 | AC29: 0
D30: Corr Single - Ten | M30: 0 | N30: 0 | O30: 0 | P30: 0 | Q30: 0 | R30: 0 | S30: 0 | T30: 0 | U30: 0 | Y30: 0 | Z30: 0 | AA30: 0 | AB30: 0 | AC30: 0
D31: Corr Single - Un-Ten | M31: 0 | N31: 0 | O31: 0 | P31: 0 | Q31: 0 | R31: 0 | S31: 0 | T31: 0 | U31: 0 | Y31: 0 | Z31: 0 | AA31: 0 | AB31: 0 | AC31: 0
D32: Corr Double - Ten | M32: 0 | N32: 0 | O32: 0 | P32: 0 | Q32: 0 | R32: 0 | S32: 0 | T32: 0 | U32: =SUM(E32:L32) -> 0 | Y32: =IF(W32=0,0,(W32/X32)) -> 0 | Z32: =U32*V32 -> 0 | AA32: =IFERROR(Z32/X32,0) -> 0 | AB32: =IFERROR(MIN(W32,X32)*AA32,0) -> 0 | AC32: =Z32-AB32 -> 0
D33: Corr - Un-Ten | M33: 0 | N33: 0 | O33: 0 | P33: 0 | Q33: 0 | R33: 0 | S33: 0 | T33: 0 | U33: 0 | Y33: 0 | Z33: 0 | AA33: 0 | AB33: 0 | AC33: 0
D34: Wire Rope | M34: 0 | N34: 0 | O34: 0 | P34: 0 | Q34: 0 | R34: 0 | S34: 0 | T34: 0 | U34: 0 | Y34: 0 | Z34: 0 | AA34: 0 | AB34: 0 | AC34: 0
C35: Bus Stops | M35: 0 | N35: 0 | O35: 0 | P35: 0 | Q35: 0 | R35: 0 | S35: 0 | T35: 0 | U35: 0 | Y35: 0 | Z35: 0 | AA35: 0 | AB35: 0 | AC35: 0
C36: Bus Shelters | D36: Concrete | M36: 0 | N36: 0 | O36: 0 | P36: 0 | Q36: 0 | R36: 0 | S36: 0 | T36: 0 | U36: 0 | Y36: 0 | Z36: 0 | AA36: 0 | AB36: 0 | AC36: 0
D37: Timber | M37: 0 | N37: 0 | O37: 0 | P37: 0 | Q37: 0 | R37: 0 | S37: 0 | T37: 0 | U37: 0 | Y37: 0 | Z37: 0 | AA37: 0 | AB37: 0 | AC37: 0
D38: Glass Enclosed | M38: 0 | N38: 0 | O38: 0 | P38: 0 | Q38: 0 | R38: 0 | S38: 0 | T38: 0 | U38: 0 | Y38: 0 | Z38: 0 | AA38: 0 | AB38: 0 | AC38: 0
D39: Glass Cantilever | M39: 0 | N39: 0 | O39: 0 | P39: 0 | Q39: 0 | R39: 0 | S39: 0 | T39: 0 | U39: 0 | Y39: 0 | Z39: 0 | AA39: 0 | AB39: 0 | AC39: 0
D40: Metal | M40: 0 | N40: 0 | O40: 0 | P40: 0 | Q40: 0 | R40: 0 | S40: 0 | T40: 0 | U40: 0 | Y40: 0 | Z40: 0 | AA40: 0 | AB40: 0 | AC40: 0
C41: Grit Bins | M41: 0 | N41: 0 | O41: 0 | P41: 0 | Q41: 0 | R41: 0 | S41: 0 | T41: 0 | U41: 0 | Y41: 0 | Z41: 0 | AA41: 0 | AB41: 0 | AC41: 0
C42: Additional Assets | D42: Add Additional Assets Here | M42: 0 | N42: 0 | O42: 0 | P42: 0 | Q42: 0 | R42: 0 | S42: 0 | T42: 0 | U42: =SUM(E42:L42) -> 0 | Y42: =IF(W42=0,0,(W42/X42)) -> 0 | Z42: =U42*V42 -> 0 | AA42: =IFERROR(Z42/X42,0) -> 0 | AB42: =IFERROR(MIN(W42,X42)*AA42,0) -> 0 | AC42: =Z42-AB42 -> 0
C43: Additional Assets | D43: Add Additional Assets Here | M43: =IFERROR(E43/$W$5,0) -> 0 | N43: =IFERROR(F43/$X$5,0) -> 0 | O43: =IFERROR(G43/$W$6,0) -> 0 | P43: =IFERROR(H43/$X$6,0) -> 0 | Q43: =IFERROR(I43/$W$7,0) -> 0 | R43: =IFERROR(J43/$X$7,0) -> 0 | S43: =IFERROR(K43/$W$8,0) -> 0 | T43: =IFERROR(L43/$X$8,0) -> 0 | U43: =SUM(E43:L43) -> 0 | Y43: =IF(W43=0,0,(W43/X43)) -> 0 | Z43: =U43*V43 -> 0 | AA43: =IFERROR(Z43/X43,0) -> 0 | AB43: =IFERROR(MIN(W43,X43)*AA43,0) -> 0 | AC43: =Z43-AB43 -> 0
C44: Additional Assets | D44: Add Additional Assets Here | M44: 0 | N44: 0 | O44: 0 | P44: 0 | Q44: 0 | R44: 0 | S44: 0 | T44: 0 | U44: 0 | Y44: 0 | Z44: 0 | AA44: 0 | AB44: 0 | AC44: 0
C45: Additional Assets | D45: Add Additional Assets Here | M45: 0 | N45: 0 | O45: 0 | P45: 0 | Q45: 0 | R45: 0 | S45: 0 | T45: 0 | U45: 0 | Y45: 0 | Z45: 0 | AA45: 0 | AB45: 0 | AC45: 0
C46: Additional Assets | D46: Add Additional Assets Here | M46: 0 | N46: 0 | O46: 0 | P46: 0 | Q46: 0 | R46: 0 | S46: 0 | T46: 0 | U46: 0 | Y46: 0 | Z46: 0 | AA46: 0 | AB46: 0 | AC46: 0
C47: Additional Assets | D47: Add Additional Assets Here | M47: 0 | N47: 0 | O47: 0 | P47: 0 | Q47: 0 | R47: 0 | S47: 0 | T47: 0 | U47: 0 | Y47: 0 | Z47: 0 | AA47: 0 | AB47: 0 | AC47: 0
D48: GROSS REPLACEMENT COST (GRC) (£,000s) | E48: =SUM(SFOwnData[GRC Value (£)])/1000 -> 0
D49: ACCUMULATED DEPRECIATION (£,000s) | E49: =SUM(SFOwnData[Accumulated Depreciation (£)])/1000 -> 0
D50: ANNUAL DEPRECIATION (£,000s) | E50: =SUM(SFOwnData[Annual Depreciation (£)])/1000 -> 0
D51: DEPRECIATED REPLACEMENT COST (DRC) (£,000s) | E51: =SUM(SFOwnData[DRC Value (£)])/1000 -> 0
C53: Notes/Evidence
C65: Change Register | D65: Change
C66: Version 2.5, Nov 2015 | D66: * Cell information (?) button
D67: * Auto populate/manual input in the Network Length Table
D68: * Add/Delete additional Rows for Additional Assets Only.
D69: * Table layout to allow authorities to copy and paste data from another worksheet

Sheet SF - Derbyshire
C3: Street Furniture - Derbyshire | N3: Adding Additional Rows | U3: Network length (km)
C4: Step 1 | D4: Enter the Number of Additional Assets Rows required in 'Adding Additional Rows' box and press INSERT ROWS | U4: Road Type/Classification | W4: Urban | X4: Rural
C5: Step 2 | D5: Enter the NUMBER OF ASSETS PER ROAD CLASSIFICATION per Asset Type | N5: Number of Additional Assets rows | U5: A | W5: =IF('Carriageways & Footways GRC'!D20>0,'Carriageways & Footways GRC'!D20,"Please enter a length") -> Please enter a length | X5: =IF('Carriageways & Footways GRC'!D21>0,'Carriageways & Footways GRC'!D21,"Please enter a length") -> Please enter a length
C6: Step 3 | D6: Enter Local Average Treatment Cost/Unit, Estimated Age of Assets, and Estimated Lifespan for each asset type. | U6: B | W6: =IF('Carriageways & Footways GRC'!D22>0,'Carriageways & Footways GRC'!D22,"Please enter a length") -> Please enter a length | X6: =IF('Carriageways & Footways GRC'!D23>0,'Carriageways & Footways GRC'!D23,"Please enter a length") -> Please enter a length
C7: Step 4 | D7: Add any comments to the comments box provided at the bottom of the sheet | U7: C | W7: =IF('Carriageways & Footways GRC'!D24>0,'Carriageways & Footways GRC'!D24,"Please enter a length") -> Please enter a length | X7: =IF('Carriageways & Footways GRC'!D25>0,'Carriageways & Footways GRC'!D25,"Please enter a length") -> Please enter a length
U8: UC | W8: =IF('Carriageways & Footways GRC'!D26>0,'Carriageways & Footways GRC'!D26,"Please enter a length") -> Please enter a length | X8: =IF('Carriageways & Footways GRC'!D27>0,'Carriageways & Footways GRC'!D27,"Please enter a length") -> Please enter a length
C9: Note 1 | D9: If you have Street Furniture assets on Motorways then please incorporate under A Roads. | U9: Total Length | W9: =SUM(W5:W8) -> 0 | X9: =SUM(X5:X8) -> 0
C10: Note 2 | D10: To Delete Rows from Additional Assets please select the rows and press DELETE | U10: Grand total | W10: =SUM(W9:X9) -> 0
E12: Number of Assets per road classification | M12: Number of Assets per km of road classification | U12: GRC and DRC Calculation
E14: A | G14: B | I14: C | K14: UC | M14: A | O14: B | Q14: C | S14: UC
C15: Asset Type | D15: Sub Group | E15: Urban | F15: Rural | G15: Urban | H15: Rural | I15: Urban2 | J15: Rural2 | K15: Urban3 | L15: Rural3 | M15: Urban Per Km | N15: Rural Per Km | O15: Urban Per Km2 | P15: Rural Per Km2 | Q15: Urban Per Km3 | R15: Rural Per Km3 | S15: Urban Per Km4 | T15: Rural Per Km4 | U15: Total Assets | V15: Local Average Treatment Cost/Unit (£) | W15: Estimated Age (Years) | X15: Estimated Lifespan (Years) | Y15: Age/ Lifespan | Z15: GRC Value (£) | AA15: Annual Depreciation (£) | AB15: Accumulated Depreciation (£) | AC15: DRC Value (£)
C16: Traffic Signs Non-Illuminated | D16: Warning | E16: =IFERROR($W$5*M16,0) -> 0 | F16: =IFERROR($X$5*N16,0) -> 0 | G16: =IFERROR($W$6*O16,0) -> 0 | H16: =IFERROR($X$6*P16,0) -> 0 | I16: =IFERROR($W$7*Q16,0) -> 0 | J16: =IFERROR($X$7*R16,0) -> 0 | K16: =IFERROR($W$8*S16,0) -> 0 | L16: =IFERROR($X$8*T16,0) -> 0 | M16: 8.496062992 | N16: 6.102380952 | O16: 7.830188679 | P16: 6.145038168 | Q16: 6.776566757 | R16: 2.90491453 | S16: 2.708801498 | T16: 1.762247839 | U16: =SUM(E16:L16) -> 0 | Y16: =IF(W16=0,0,(W16/X16)) -> 0 | Z16: =V16*U16 -> 0 | AA16: =IFERROR(Z16/X16,0) -> 0 | AB16: =IFERROR(MIN(W16,X16)*AA16,0) -> 0 | AC16: =Z16-AB16 -> 0
D17: Regulatory | E17: =IFERROR($W$5*M17,0) -> 0 | F17: =IFERROR($X$5*N17,0) -> 0 | G17: =IFERROR($W$6*O17,0) -> 0 | H17: =IFERROR($X$6*P17,0) -> 0 | I17: =IFERROR($W$7*Q17,0) -> 0 | J17: =IFERROR($X$7*R17,0) -> 0 | K17: =IFERROR($W$8*S17,0) -> 0 | L17: =IFERROR($X$8*T17,0) -> 0 | M17: 10.23228346 | N17: 4.254761905 | O17: 9.132075472 | P17: 5.148854962 | Q17: 7.128065395 | R17: 2.738247863 | S17: 4.390449438 | T17: 2.344380403 | U17: =SUM(E17:L17) -> 0 | Y17: =IF(W17=0,0,(W17/X17)) -> 0 | Z17: =V17*U17 -> 0 | AA17: =IFERROR(Z17/X17,0) -> 0 | AB17: =IFERROR(MIN(W17,X17)*AA17,0) -> 0 | AC17: 0
D18: Directional | E18: 0 | F18: 0 | G18: 0 | H18: 0 | I18: 0 | J18: 0 | K18: 0 | L18: 0 | M18: 6.122047244 | N18: 2.757142857 | O18: 3.816037736 | P18: 2.65648855 | Q18: 2.245231608 | R18: 1.368589744 | S18: 0.9185393258 | T18: 1.020172911 | U18: 0 | Y18: 0 | Z18: =V18*U18 -> 0 | AA18: =IFERROR(Z18/X18,0) -> 0 | AB18: =IFERROR(MIN(W18,X18)*AA18,0) -> 0 | AC18: =Z18-AB18 -> 0
D19: Informatory | E19: 0 | F19: 0 | G19: 0 | H19: 0 | I19: 0 | J19: 0 | K19: 0 | L19: 0 | M19: 4.61023622 | N19: 1.473809524 | O19: 2.099056604 | P19: 0.5076335878 | Q19: 1.174386921 | R19: 0.2638888889 | S19: 1.81741573 | T19: 0.5187319885 | U19: 0 | Y19: 0 | Z19: 0 | AA19: 0 | AB19: 0 | AC19: 0
D20: Boundary | E20: 0 | F20: 0 | G20: 0 | H20: 0 | I20: 0 | J20: 0 | K20: 0 | L20: 0 | M20: 1.066929134 | N20: 0.5238095238 | O20: 0.8820754717 | P20: 0.6603053435 | Q20: 0.8365122616 | R20: 0.3514957265 | S20: 0.2265917603 | T20: 0.2694524496 | U20: 0 | Y20: 0 | Z20: 0 | AA20: 0 | AB20: 0 | AC20: 0
D21: Non DCC | E21: 0 | F21: 0 | G21: 0 | H21: 0 | I21: 0 | J21: 0 | K21: 0 | L21: 0 | M21: 1.082677165 | N21: 0.1880952381 | O21: 0.5660377358 | P21: 0.08396946565 | Q21: 0.3351498638 | R21: 0.02136752137 | S21: 0.1690074906 | T21: 0.05763688761 | U21: 0 | Y21: 0 | Z21: 0 | AA21: 0 | AB21: 0 | AC21: 0
D22: Parking Directional | E22: 0 | F22: 0 | G22: 0 | H22: 0 | I22: 0 | J22: 0 | K22: 0 | L22: 0 | M22: 0.3582677165 | N22: 0.07142857143 | O22: 0.2358490566 | P22: 0.02671755725 | Q22: 0.1716621253 | R22: 0.01923076923 | S22: 0.0856741573 | T22: 0.02017291066 | U22: 0 | Y22: 0 | Z22: 0 | AA22: 0 | AB22: 0 | AC22: 0
D23: Not Assessed | E23: 0 | F23: 0 | G23: 0 | H23: 0 | I23: 0 | J23: 0 | K23: 0 | L23: 0 | M23: 0.2440944882 | N23: 0.09523809524 | O23: 0.2547169811 | P23: 0.08396946565 | Q23: 0.1716621253 | R23: 0.07051282051 | S23: 0.1563670412 | T23: 0.09365994236 | U23: 0 | Y23: 0 | Z23: 0 | AA23: 0 | AB23: 0 | AC23: 0
C24: PROW Signs | D24: Metal | E24: 0 | F24: 0 | G24: 0 | H24: 0 | I24: 0 | J24: 0 | K24: 0 | L24: 0 | M24: 0.5787401575 | N24: 0.1476190476 | O24: 0.5896226415 | P24: 0.2595419847 | Q24: 0.7983651226 | R24: 0.202991453 | S24: 0.46582397 | T24: 0.2939481268 | U24: 0 | Y24: 0 | Z24: 0 | AA24: 0 | AB24: 0 | AC24: 0
D25: Timber | E25: 0 | F25: 0 | G25: 0 | H25: 0 | I25: 0 | J25: 0 | K25: 0 | L25: 0 | M25: 0.2637795276 | N25: 0.3714285714 | O25: 0.3867924528 | P25: 0.6908396947 | Q25: 0.5449591281 | R25: 0.827991453 | S25: 0.2720037453 | T25: 1.355907781 | U25: 0 | Y25: 0 | Z25: 0 | AA25: 0 | AB25: 0 | AC25: 0
C26: Pedestrian Barriers | D26: Standard PGR1 | E26: 0 | F26: 0 | G26: 0 | H26: 0 | I26: 0 | J26: 0 | K26: 0 | L26: 0 | M26: 5.244094488 | N26: 0.380952381 | O26: 6.061320755 | P26: 1.095419847 | Q26: 2.536784741 | R26: 0.3173076923 | S26: 1.699438202 | T26: 0.34870317 | U26: 0 | Y26: 0 | Z26: 0 | AA26: 0 | AB26: 0 | AC26: 0
D27: Visirail PGR3 | E27: 0 | F27: 0 | G27: 0 | H27: 0 | I27: 0 | J27: 0 | K27: 0 | L27: 0 | M27: 21.47637795 | N27: 0.8523809524 | O27: 5.66509434 | P27: 0.9160305344 | Q27: 3.719346049 | R27: 0.2008547009 | S27: 2.857209738 | T27: 0.1772334294 | U27: 0 | Y27: 0 | Z27: 0 | AA27: 0 | AB27: 0 | AC27: 0
C28: Safety Fencing (Lin m) | D28: Box Single | E28: 0 | F28: 0 | G28: 0 | H28: 0 | I28: 0 | J28: 0 | K28: 0 | L28: 0 | M28: 14.49212598 | N28: 80.28333333 | O28: 3.924528302 | P28: 4.312977099 | Q28: 5.495912807 | R28: 1.752136752 | S28: 2.212546816 | T28: 3.188760807 | U28: 0 | Y28: 0 | Z28: 0 | AA28: 0 | AB28: 0 | AC28: 0
D29: Box Double | E29: 0 | F29: 0 | G29: 0 | H29: 0 | I29: 0 | J29: 0 | K29: 0 | L29: 0 | M29: 0.3622047244 | N29: 2.433333333 | O29: 0.03773584906 | P29: 0 | Q29: 0.1907356948 | R29: 0 | S29: 0.00468164794 | T29: 0 | U29: 0 | Y29: 0 | Z29: 0 | AA29: 0 | AB29: 0 | AC29: 0
D30: Corr Single - Ten | E30: 0 | F30: 0 | G30: 0 | H30: 0 | I30: 0 | J30: 0 | K30: 0 | L30: 0 | M30: 14.34251969 | N30: 83.21190476 | O30: 2.113207547 | P30: 2.816793893 | Q30: 1.493188011 | R30: 4.944444444 | S30: 2.099250936 | T30: 2.308357349 | U30: 0 | Y30: 0 | Z30: 0 | AA30: 0 | AB30: 0 | AC30: 0
D31: Corr Single - Un-Ten | E31: 0 | F31: 0 | G31: 0 | H31: 0 | I31: 0 | J31: 0 | K31: 0 | L31: 0 | M31: 1.350393701 | N31: 0.6047619048 | O31: 0.9150943396 | P31: 0.465648855 | Q31: 0.6076294278 | R31: 0.2713675214 | S31: 0.234082397 | T31: 0.2997118156 | U31: 0 | Y31: 0 | Z31: 0 | AA31: 0 | AB31: 0 | AC31: 0
D32: Corr Double - Ten | E32: 0 | F32: 0 | G32: 0 | H32: 0 | I32: 0 | J32: 0 | K32: 0 | L32: 0 | M32: 0 | N32: 0 | O32: 0 | P32: 0 | Q32: 0 | R32: 0.01923076923 | S32: 0.007958801498 | T32: 0 | U32: 0 | Y32: 0 | Z32: 0 | AA32: 0 | AB32: 0 | AC32: 0
D33: Corr - Un-Ten | E33: 0 | F33: 0 | G33: 0 | H33: 0 | I33: 0 | J33: 0 | K33: 0 | L33: 0 | M33: 0 | N33: 0 | O33: 0 | P33: 0 | Q33: 0 | R33: 0 | S33: 0 | T33: 0 | U33: 0 | Y33: 0 | Z33: 0 | AA33: 0 | AB33: 0 | AC33: 0
D34: Wire Rope | E34: 0 | F34: 0 | G34: 0 | H34: 0 | I34: 0 | J34: 0 | K34: 0 | L34: 0 | M34: 0 | N34: 0 | O34: 0 | P34: 0 | Q34: 0 | R34: 0 | S34: 0 | T34: 0 | U34: 0 | Y34: 0 | Z34: 0 | AA34: 0 | AB34: 0 | AC34: 0
C35: Bus Stops | E35: 0 | F35: 0 | G35: 0 | H35: 0 | I35: 0 | J35: 0 | K35: 0 | L35: 0 | M35: 3.141732283 | N35: 0.530952381 | O35: 2.726415094 | P35: 0.679389313 | Q35: 1.975476839 | R35: 0.2382478632 | S35: 1.029494382 | T35: 0.1152737752 | U35: 0 | Y35: 0 | Z35: 0 | AA35: 0 | AB35: 0 | AC35: 0
C36: Bus Shelters | D36: Concrete | E36: 0 | F36: 0 | G36: 0 | H36: 0 | I36: 0 | J36: 0 | K36: 0 | L36: 0 | M36: 0.1220472441 | N36: 0.04761904762 | O36: 0.1839622642 | P36: 0.04961832061 | Q36: 0.1089918256 | R36: 0.01816239316 | S36: 0.02247191011 | T36: 0.004322766571 | U36: 0 | Y36: 0 | Z36: 0 | AA36: 0 | AB36: 0 | AC36: 0
D37: Timber | E37: 0 | F37: 0 | G37: 0 | H37: 0 | I37: 0 | J37: 0 | K37: 0 | L37: 0 | M37: 0.07874015748 | N37: 0.0119047619 | O37: 0.1273584906 | P37: 0.03816793893 | Q37: 0.05994550409 | R37: 0.009615384615 | S37: 0.008895131086 | T37: 0.007204610951 | U37: 0 | Y37: 0 | Z37: 0 | AA37: 0 | AB37: 0 | AC37: 0
D38: Glass Enclosed | E38: 0 | F38: 0 | G38: 0 | H38: 0 | I38: 0 | J38: 0 | K38: 0 | L38: 0 | M38: 0.2952755906 | N38: 0.02619047619 | O38: 0.1839622642 | P38: 0 | Q38: 0.09536784741 | R38: 0.01175213675 | S38: 0.0706928839 | T38: 0.005763688761 | U38: 0 | Y38: 0 | Z38: 0 | AA38: 0 | AB38: 0 | AC38: 0
D39: Glass Cantilever | E39: 0 | F39: 0 | G39: 0 | H39: 0 | I39: 0 | J39: 0 | K39: 0 | L39: 0 | M39: 0.7204724409 | N39: 0.02619047619 | O39: 0.5849056604 | P39: 0.04198473282 | Q39: 0.272479564 | R39: 0.01068376068 | S39: 0.1755617978 | T39: 0.01008645533 | U39: 0 | Y39: 0 | Z39: 0 | AA39: 0 | AB39: 0 | AC39: 0
D40: Metal | E40: 0 | F40: 0 | G40: 0 | H40: 0 | I40: 0 | J40: 0 | K40: 0 | L40: 0 | M40: 0.02755905512 | N40: 0.004761904762 | O40: 0.04716981132 | P40: 0.003816793893 | Q40: 0.0272479564 | R40: 0.001068376068 | S40: 0.01123595506 | T40: 0 | U40: 0 | Y40: 0 | Z40: 0 | AA40: 0 | AB40: 0 | AC40: 0
C41: Grit Bins | E41: 0 | F41: 0 | G41: 0 | H41: 0 | I41: 0 | J41: 0 | K41: 0 | L41: 0 | M41: 0.07874015748 | N41: 0.02619047619 | O41: 0.1745283019 | P41: 0.0534351145 | Q41: 0.2016348774 | R41: 0.07371794872 | S41: 0.3913857678 | T41: 0.1152737752 | U41: 0 | Y41: 0 | Z41: 0 | AA41: 0 | AB41: 0 | AC41: 0
C42: Additional Assets | D42: Add Additional Assets Here | M42: =IFERROR(E42/$W$5,0) -> 0 | N42: =IFERROR(F42/$X$5,0) -> 0 | O42: =IFERROR(G42/$W$6,0) -> 0 | P42: =IFERROR(H42/$X$6,0) -> 0 | Q42: =IFERROR(I42/$W$7,0) -> 0 | R42: =IFERROR(J42/$X$7,0) -> 0 | S42: =IFERROR(K42/$W$8,0) -> 0 | T42: =IFERROR(L42/$X$8,0) -> 0 | U42: =SUM(E42:L42) -> 0 | Y42: =IF(W42=0,0,(W42/X42)) -> 0 | Z42: =V42*U42 -> 0 | AA42: =IFERROR(Z42/X42,0) -> 0 | AB42: =IFERROR(MIN(W42,X42)*AA42,0) -> 0 | AC42: =Z42-AB42 -> 0
C43: Additional Assets | D43: Add Additional Assets Here | M43: =IFERROR(E43/$W$5,0) -> 0 | N43: =IFERROR(F43/$X$5,0) -> 0 | O43: =IFERROR(G43/$W$6,0) -> 0 | P43: =IFERROR(H43/$X$6,0) -> 0 | Q43: =IFERROR(I43/$W$7,0) -> 0 | R43: =IFERROR(J43/$X$7,0) -> 0 | S43: =IFERROR(K43/$W$8,0) -> 0 | T43: =IFERROR(L43/$X$8,0) -> 0 | U43: =SUM(E43:L43) -> 0 | Y43: =IF(W43=0,0,(W43/X43)) -> 0 | Z43: =V43*U43 -> 0 | AA43: =IFERROR(Z43/X43,0) -> 0 | AB43: =IFERROR(MIN(W43,X43)*AA43,0) -> 0 | AC43: =Z43-AB43 -> 0
C44: Additional Assets | D44: Add Additional Assets Here | M44: 0 | N44: 0 | O44: 0 | P44: 0 | Q44: 0 | R44: 0 | S44: 0 | T44: 0 | U44: 0 | Y44: 0 | Z44: 0 | AA44: 0 | AB44: 0 | AC44: 0
C45: Additional Assets | D45: Add Additional Assets Here | M45: 0 | N45: 0 | O45: 0 | P45: 0 | Q45: 0 | R45: 0 | S45: 0 | T45: 0 | U45: 0 | Y45: 0 | Z45: 0 | AA45: 0 | AB45: 0 | AC45: 0
C46: Additional Assets | D46: Add Additional Assets Here | M46: 0 | N46: 0 | O46: 0 | P46: 0 | Q46: 0 | R46: 0 | S46: 0 | T46: 0 | U46: 0 | Y46: 0 | Z46: 0 | AA46: 0 | AB46: 0 | AC46: 0
C47: Additional Assets | D47: Add Additional Assets Here | M47: 0 | N47: 0 | O47: 0 | P47: 0 | Q47: 0 | R47: 0 | S47: 0 | T47: 0 | U47: 0 | Y47: 0 | Z47: 0 | AA47: 0 | AB47: 0 | AC47: 0
D48: GROSS REPLACEMENT COST (GRC) (£,000s) | E48: =SUM(SFDerbyshire[GRC Value (£)])/1000 -> 0
D49: ACCUMULATED DEPRECIATION (£,000s) | E49: =SUM(SFDerbyshire[Accumulated Depreciation (£)])/1000 -> 0
D50: ANNUAL DEPRECIATION (£,000s) | E50: =SUM(SFDerbyshire[Annual Depreciation (£)])/1000 -> 0
D51: DEPRECIATED REPLACEMENT COST (DRC) (£,000s) | E51: =SUM(SFDerbyshire[DRC Value (£)])/1000 -> 0
C53: Notes/Evidence
C65: Change Register | D65: Change
C66: Version 2.5, Nov 2015 | D66: * Cell information (?) button
D67: * Auto populate/manual input in the Network Length Table
D68: * Table layout to allow authorities to copy and paste data from another worksheet

Sheet SF - Hertfordshire
C3: Street Furniture - Hertfordshire | N3: Adding Additional Rows | U3: Network length (km)
C4: Step 1 | D4: Enter the Number of Additional Assets Rows required in 'Adding Additional Rows' box and press INSERT ROWS | U4: Road Type/Classification | W4: Urban | X4: Rural
C5: Step 2 | D5: Enter the NUMBER OF ASSETS PER ROAD CLASSIFICATION per Asset Type | N5: Number of Additional Assets rows | U5: A | W5: =IF('Carriageways & Footways GRC'!D20>0,'Carriageways & Footways GRC'!D20,"Please enter a length") -> Please enter a length | X5: =IF('Carriageways & Footways GRC'!D21>0,'Carriageways & Footways GRC'!D21,"Please enter a length") -> Please enter a length
C6: Step 3 | D6: Enter Local Average Treatment Cost/Unit, Estimated Age of Assets, and Estimated Lifespan for each asset type. | U6: B | W6: =IF('Carriageways & Footways GRC'!D22>0,'Carriageways & Footways GRC'!D22,"Please enter a length") -> Please enter a length | X6: =IF('Carriageways & Footways GRC'!D23>0,'Carriageways & Footways GRC'!D23,"Please enter a length") -> Please enter a length
C7: Step 4 | D7: Add any comments to the comments box provided at the bottom of the sheet | U7: C | W7: =IF('Carriageways & Footways GRC'!D24>0,'Carriageways & Footways GRC'!D24,"Please enter a length") -> Please enter a length | X7: =IF('Carriageways & Footways GRC'!D25>0,'Carriageways & Footways GRC'!D25,"Please enter a length") -> Please enter a length
U8: UC | W8: =IF('Carriageways & Footways GRC'!D26>0,'Carriageways & Footways GRC'!D26,"Please enter a length") -> Please enter a length | X8: =IF('Carriageways & Footways GRC'!D27>0,'Carriageways & Footways GRC'!D27,"Please enter a length") -> Please enter a length
C9: Note 1 | D9: If you have Street Furniture assets on Motorways then please incorporate under A Roads. | U9: Total Length | W9: =SUM(W5:W8) -> 0 | X9: =SUM(X5:X8) -> 0
C10: Note 2 | D10: To Delete Rows from Additional Assets please select the rows and press DELETE | U10: Grand total | W10: =SUM(W9:X9) -> 0
E12: Number of Assets per road classification | M12: Number of Assets per km of road classification | U12: GRC and DRC Calculation
E14: A | G14: B | I14: C | K14: UC | M14: A | O14: B | Q14: C | S14: UC
C15: Asset Type | D15: Sub Group | E15: Urban | F15: Rural | G15: Urban | H15: Rural | I15: Urban2 | J15: Rural2 | K15: Urban3 | L15: Rural3 | M15: Urban Per Km | N15: Rural Per Km | O15: Urban Per Km2 | P15: Rural Per Km2 | Q15: Urban Per Km3 | R15: Rural Per Km3 | S15: Urban Per Km4 | T15: Rural Per Km4 | U15: Total Assets | V15: Local Average Treatment Cost/Unit (£) | W15: Estimated Age (Years) | X15: Estimated Lifespan (Years) | Y15: Age/ Lifespan | Z15: GRC Value (£) | AA15: Annual Depreciation (£) | AB15: Accumulated Depreciation (£) | AC15: DRC Value (£)
C16: Traffic Signs Non-Illuminated | D16: Warning | E16: =IFERROR($W$5*M16,0) -> 0 | F16: =IFERROR($X$5*N16,0) -> 0 | G16: =IFERROR($W$6*O16,0) -> 0 | H16: =IFERROR($X$6*P16,0) -> 0 | I16: =IFERROR($W$7*Q16,0) -> 0 | J16: =IFERROR($X$7*R16,0) -> 0 | K16: =IFERROR($W$8*S16,0) -> 0 | L16: =IFERROR($X$8*T16,0) -> 0 | M16: 8.53 | N16: 6.178484108 | O16: 10.29761905 | P16: 12.48447205 | Q16: 11.97790055 | R16: 7.378205128 | S16: 4.026033691 | T16: 2.958860759 | U16: =SUM(E16:L16) -> 0 | Y16: =IF(W16=0,0,(W16/X16)) -> 0 | Z16: =V16*U16 -> 0 | AA16: =IF(X16=0,0,(Z16/X16)) -> 0 | AB16: =IF(Y16*Z16>Z16,"Check Age/Lifespan",Y16*Z16) -> 0 | AC16: =IF(AB16="Check Age/Lifespan", "ERROR",Z16-AB16) -> 0
D17: Regulatory | E17: =IFERROR($W$5*M17,0) -> 0 | F17: =IFERROR($X$5*N17,0) -> 0 | G17: =IFERROR($W$6*O17,0) -> 0 | H17: =IFERROR($X$6*P17,0) -> 0 | I17: =IFERROR($W$7*Q17,0) -> 0 | J17: =IFERROR($X$7*R17,0) -> 0 | K17: =IFERROR($W$8*S17,0) -> 0 | L17: =IFERROR($X$8*T17,0) -> 0 | M17: 15.83666667 | N17: 3.300733496 | O17: 15.4047619 | P17: 3.086956522 | Q17: 12.23756906 | R17: 3.164529915 | S17: 9.569678407 | T17: 2.783227848 | U17: =SUM(E17:L17) -> 0 | Y17: 0 | Z17: =V17*U17 -> 0 | AA17: 0 | AB17: 0 | AC17: 0
D18: Directional | E18: 0 | F18: 0 | G18: 0 | H18: 0 | I18: 0 | J18: 0 | K18: 0 | L18: 0 | M18: 12.42333333 | N18: 3.454767726 | O18: 12.30952381 | P18: 3.298136646 | Q18: 7.930939227 | R18: 2.376068376 | S18: 2.379785605 | T18: 0.753164557 | U18: 0 | Y18: 0 | Z18: 0 | AA18: 0 | AB18: 0 | AC18: 0
D19: Informatory | E19: 0 | F19: 0 | G19: 0 | H19: 0 | I19: 0 | J19: 0 | K19: 0 | L19: 0 | M19: 1.203333333 | N19: 1.13202934 | O19: 1.154761905 | P19: 0.3167701863 | Q19: 1.102209945 | R19: 0.2393162393 | S19: 1.969372129 | T19: 0.5189873418 | U19: 0 | Y19: 0 | Z19: 0 | AA19: 0 | AB19: 0 | AC19: 0
D20: Boundary | E20: 0 | F20: 0 | G20: 0 | H20: 0 | I20: 0 | J20: 0 | K20: 0 | L20: 0 | M20: 2.183333333 | N20: 0.3349633252 | O20: 2.779761905 | P20: 1.161490683 | Q20: 3.107734807 | R20: 1.066239316 | S20: 7.684915773 | T20: 1.253164557 | U20: 0 | Y20: 0 | Z20: 0 | AA20: 0 | AB20: 0 | AC20: 0
D21: Non DCC | E21: 0 | F21: 0 | G21: 0 | H21: 0 | I21: 0 | J21: 0 | K21: 0 | L21: 0 | M21: 0 | N21: 0 | O21: 0 | P21: 0 | Q21: 0 | R21: 0 | S21: 0 | T21: 0 | U21: 0 | Y21: 0 | Z21: 0 | AA21: 0 | AB21: 0 | AC21: 0
D22: Parking Directional | E22: 0 | F22: 0 | G22: 0 | H22: 0 | I22: 0 | J22: 0 | K22: 0 | L22: 0 | M22: 0.3966666667 | N22: 0.2249388753 | O22: 0.3988095238 | P22: 0 | Q22: 0 | R22: 0.004273504274 | S22: 0.08537519142 | T22: 0.009493670886 | U22: 0 | Y22: 0 | Z22: 0 | AA22: 0 | AB22: 0 | AC22: 0
D23: Not Assessed | E23: 0 | F23: 0 | G23: 0 | H23: 0 | I23: 0 | J23: 0 | K23: 0 | L23: 0 | M23: 1.54 | N23: 0.2469437653 | O23: 3.589285714 | P23: 0.5776397516 | Q23: 2.870165746 | R23: 0.8931623932 | S23: 6.511485452 | T23: 0.7547468354 | U23: 0 | Y23: 0 | Z23: 0 | AA23: 0 | AB23: 0 | AC23: 0
C24: PROW Signs | D24: Metal | E24: 0 | F24: 0 | G24: 0 | H24: 0 | I24: 0 | J24: 0 | K24: 0 | L24: 0 | M24: 0.6166666667 | N24: 0.5721271394 | O24: 1.208333333 | P24: 1.875776398 | Q24: 5.220994475 | R24: 2.188034188 | S24: 0.6313169985 | T24: 2.549050633 | U24: 0 | Y24: 0 | Z24: 0 | AA24: 0 | AB24: 0 | AC24: 0
D25: Timber | E25: 0 | F25: 0 | G25: 0 | H25: 0 | I25: 0 | J25: 0 | K25: 0 | L25: 0 | M25: 0 | N25: 0 | O25: 0 | P25: 0 | Q25: 0 | R25: 0 | S25: 0 | T25: 0 | U25: 0 | Y25: 0 | Z25: 0 | AA25: 0 | AB25: 0 | AC25: 0
C26: Pedestrian Barriers (Lin m) | D26: Standard PGR1 | E26: 0 | F26: 0 | G26: 0 | H26: 0 | I26: 0 | J26: 0 | K26: 0 | L26: 0 | M26: 146.99 | N26: 0 | O26: 67.77380952 | P26: 0 | Q26: 29.03867403 | R26: 0 | S26: 17.25421133 | T26: 0 | U26: 0 | Y26: 0 | Z26: 0 | AA26: 0 | AB26: 0 | AC26: 0
D27: Visirail PGR3 | E27: 0 | F27: 0 | G27: 0 | H27: 0 | I27: 0 | J27: 0 | K27: 0 | L27: 0 | M27: 0 | N27: 0 | O27: 0 | P27: 0 | Q27: 0 | R27: 0 | S27: 0 | T27: 0 | U27: 0 | Y27: 0 | Z27: 0 | AA27: 0 | AB27: 0 | AC27: 0
C28: Safety Fencing (Lin m) | D28: Box Single | E28: 0 | F28: 0 | G28: 0 | H28: 0 | I28: 0 | J28: 0 | K28: 0 | L28: 0 | M28: 78.04666667 | N28: 134.4547677 | O28: 3.976190476 | P28: 13.8757764 | Q28: 1.701657459 | R28: 0 | S28: 0.9180704441 | T28: 1.892405063 | U28: 0 | Y28: 0 | Z28: 0 | AA28: 0 | AB28: 0 | AC28: 0
D29: Box Double | E29: 0 | F29: 0 | G29: 0 | H29: 0 | I29: 0 | J29: 0 | K29: 0 | L29: 0 | M29: 11.4 | N29: 18.91198044 | O29: 0 | P29: 0 | Q29: 0 | R29: 1.269230769 | S29: 0.004977029096 | T29: 0 | U29: 0 | Y29: 0 | Z29: 0 | AA29: 0 | AB29: 0 | AC29: 0
D30: Corr Single - Ten | E30: 0 | F30: 0 | G30: 0 | H30: 0 | I30: 0 | J30: 0 | K30: 0 | L30: 0 | M30: 17.69 | N30: 173.0562347 | O30: 0.2023809524 | P30: 4.291925466 | Q30: 0 | R30: 6.431623932 | S30: 0.251914242 | T30: 0 | U30: 0 | Y30: 0 | Z30: 0 | AA30: 0 | AB30: 0 | AC30: 0
D31: Corr Single - Un-Ten | E31: 0 | F31: 0 | G31: 0 | H31: 0 | I31: 0 | J31: 0 | K31: 0 | L31: 0 | M31: 11.61 | N31: 20.51589242 | O31: 2.976190476 | P31: 17.63975155 | Q31: 1.29281768 | R31: 0 | S31: 0.845712098 | T31: 2.371835443 | U31: 0 | Y31: 0 | Z31: 0 | AA31: 0 | AB31: 0 | AC31: 0
D32: Corr Double - Ten | E32: 0 | F32: 0 | G32: 0 | H32: 0 | I32: 0 | J32: 0 | K32: 0 | L32: 0 | M32: 0 | N32: 117.1589242 | O32: 0 | P32: 0 | Q32: 0 | R32: 0 | S32: 0 | T32: 0 | U32: 0 | Y32: 0 | Z32: 0 | AA32: 0 | AB32: 0 | AC32: 0
D33: Corr - Un-Ten | E33: 0 | F33: 0 | G33: 0 | H33: 0 | I33: 0 | J33: 0 | K33: 0 | L33: 0 | M33: 0.12 | N33: 0 | O33: 0.1071428571 | P33: 0.149068323 | Q33: 0 | R33: 0 | S33: 0 | T33: 0.01265822785 | U33: 0 | Y33: 0 | Z33: 0 | AA33: 0 | AB33: 0 | AC33: 0
D34: Wire Rope | E34: 0 | F34: 0 | G34: 0 | H34: 0 | I34: 0 | J34: 0 | K34: 0 | L34: 0 | M34: 0 | N34: 24.96577017 | O34: 0 | P34: 0 | Q34: 0 | R34: 0 | S34: 0 | T34: 0 | U34: 0 | Y34: 0 | Z34: 0 | AA34: 0 | AB34: 0 | AC34: 0
C35: Bus Stops | E35: 0 | F35: 0 | G35: 0 | H35: 0 | I35: 0 | J35: 0 | K35: 0 | L35: 0 | M35: 0 | N35: 0 | O35: 0 | P35: 0 | Q35: 0 | R35: 0 | S35: 0 | T35: 0 | U35: 0 | Y35: 0 | Z35: 0 | AA35: 0 | AB35: 0 | AC35: 0
C36: Bus Shelters | D36: Concrete | E36: 0 | F36: 0 | G36: 0 | H36: 0 | I36: 0 | J36: 0 | K36: 0 | L36: 0 | M36: 0 | N36: 0 | O36: 0 | P36: 0 | Q36: 0 | R36: 0 | S36: 0 | T36: 0 | U36: 0 | Y36: 0 | Z36: 0 | AA36: 0 | AB36: 0 | AC36: 0
D37: Timber | E37: 0 | F37: 0 | G37: 0 | H37: 0 | I37: 0 | J37: 0 | K37: 0 | L37: 0 | M37: 0 | N37: 0 | O37: 0 | P37: 0 | Q37: 0 | R37: 0 | S37: 0 | T37: 0 | U37: 0 | Y37: 0 | Z37: 0 | AA37: 0 | AB37: 0 | AC37: 0
D38: Glass Enclosed | E38: 0 | F38: 0 | G38: 0 | H38: 0 | I38: 0 | J38: 0 | K38: 0 | L38: 0 | M38: 0 | N38: 0 | O38: 0 | P38: 0 | Q38: 0 | R38: 0 | S38: 0 | T38: 0 | U38: 0 | Y38: 0 | Z38: 0 | AA38: 0 | AB38: 0 | AC38: 0
D39: Glass Cantilever | E39: 0 | F39: 0 | G39: 0 | H39: 0 | I39: 0 | J39: 0 | K39: 0 | L39: 0 | M39: 0 | N39: 0 | O39: 0 | P39: 0 | Q39: 0 | R39: 0 | S39: 0 | T39: 0 | U39: 0 | Y39: 0 | Z39: 0 | AA39: 0 | AB39: 0 | AC39: 0
D40: Metal | E40: 0 | F40: 0 | G40: 0 | H40: 0 | I40: 0 | J40: 0 | K40: 0 | L40: 0 | M40: 0 | N40: 0 | O40: 0 | P40: 0 | Q40: 0 | R40: 0 | S40: 0 | T40: 0 | U40: 0 | Y40: 0 | Z40: 0 | AA40: 0 | AB40: 0 | AC40: 0
C41: Grit Bins | E41: 0 | F41: 0 | G41: 0 | H41: 0 | I41: 0 | J41: 0 | K41: 0 | L41: 0 | M41: 0.07 | N41: 0.00488997555 | O41: 0.1130952381 | P41: 0.006211180124 | Q41: 0.1878453039 | R41: 0.0405982906 | S41: 0.3598774885 | T41: 0.0585443038 | U41: 0 | Y41: 0 | Z41: 0 | AA41: 0 | AB41: 0 | AC41: 0
C42: Additional Assets | D42: Add Additional Assets Here | M42: =IFERROR(E42/$W$5,0) -> 0 | N42: =IFERROR(F42/$X$5,0) -> 0 | O42: =IFERROR(G42/$W$6,0) -> 0 | P42: =IFERROR(H42/$X$6,0) -> 0 | Q42: =IFERROR(I42/$W$7,0) -> 0 | R42: =IFERROR(J42/$X$7,0) -> 0 | S42: =IFERROR(K42/$W$8,0) -> 0 | T42: =IFERROR(L42/$X$8,0) -> 0 | U42: =SUM(E42:L42) -> 0 | Y42: =IF(W42=0,0,(W42/X42)) -> 0 | Z42: =V42*U42 -> 0 | AA42: =IF(X42=0,0,(Z42/X42)) -> 0 | AB42: =IF(Y42*Z42>Z42,"Check Age/Lifespan",Y42*Z42) -> 0 | AC42: =IF(AB42="Check Age/Lifespan", "ERROR",Z42-AB42) -> 0
D43: GROSS REPLACEMENT COST (GRC) (£,000s) | E43: =SUM(SFHerts[GRC Value (£)])/1000 -> 0
D44: ACCUMULATED DEPRECIATION (£,000s) | E44: =SUM(SFHerts[Accumulated Depreciation (£)])/1000 -> 0
D45: ANNUAL DEPRECIATION (£,000s) | E45: =SUM(SFHerts[Annual Depreciation (£)])/1000 -> 0
D46: DEPRECIATED REPLACEMENT COST (DRC) (£,000s) | E46: =SUM(SFHerts[DRC Value (£)])/1000 -> 0
C48: Notes/Evidence
C60: Change Register | D60: Change
C61: Version 2.5, Nov 2015 | D61: * Cell information (?) button
D62: * Auto populate/manual input in the Network Length Table
D63: * Table layout to allow authorities to copy and paste data from another worksheet

Sheet SF - Medway
C3: Street Furniture - Medway | N3: Adding Additional Rows | U3: Network length (km)
C4: Step 1 | D4: Enter the Number of Additional Assets Rows required in 'Adding Additional Rows' box and press INSERT ROWS | U4: Road Type/Classification | W4: Urban | X4: Rural
C5: Step 2 | D5: Enter the NUMBER OF ASSETS PER ROAD CLASSIFICATION per Asset Type | N5: Number of Additional Assets rows | U5: A | W5: =IF('Carriageways & Footways GRC'!D20>0,'Carriageways & Footways GRC'!D20,"Please enter a length") -> Please enter a length | X5: =IF('Carriageways & Footways GRC'!D21>0,'Carriageways & Footways GRC'!D21,"Please enter a length") -> Please enter a length
C6: Step 3 | D6: Enter Local Average Treatment Cost/Unit, Estimated Age of Assets, and Estimated Lifespan for each asset type. | U6: B | W6: =IF('Carriageways & Footways GRC'!D22>0,'Carriageways & Footways GRC'!D22,"Please enter a length") -> Please enter a length | X6: =IF('Carriageways & Footways GRC'!D23>0,'Carriageways & Footways GRC'!D23,"Please enter a length") -> Please enter a length
C7: Step 4 | D7: Add any comments to the comments box provided at the bottom of the sheet | U7: C | W7: =IF('Carriageways & Footways GRC'!D24>0,'Carriageways & Footways GRC'!D24,"Please enter a length") -> Please enter a length | X7: =IF('Carriageways & Footways GRC'!D25>0,'Carriageways & Footways GRC'!D25,"Please enter a length") -> Please enter a length
U8: UC | W8: =IF('Carriageways & Footways GRC'!D26>0,'Carriageways & Footways GRC'!D26,"Please enter a length") -> Please enter a length | X8: =IF('Carriageways & Footways GRC'!D27>0,'Carriageways & Footways GRC'!D27,"Please enter a length") -> Please enter a length
C9: Note 1 | D9: If you have Street Furniture assets on Motorways then please incorporate under A Roads. | U9: Total Length | W9: =SUM(W5:W8) -> 0 | X9: =SUM(X5:X8) -> 0
C10: Note 2 | D10: To Delete Rows from Additional Assets please select the rows and press DELETE | U10: Grand total | W10: =SUM(W9:X9) -> 0
E12: Number of Assets per road classification | M12: Number of Assets per km of road classification | U12: GRC and DRC Calculation
E14: A | G14: B | I14: C | K14: UC | M14: A | O14: B | Q14: C | S14: UC
C15: Asset Type | D15: Sub Group | E15: Urban | F15: Rural | G15: Urban | H15: Rural | I15: Urban2 | J15: Rural2 | K15: Urban3 | L15: Rural3 | M15: Urban Per Km | N15: Rural Per Km | O15: Urban Per Km2 | P15: Rural Per Km2 | Q15: Urban Per Km3 | R15: Rural Per Km3 | S15: Urban Per Km4 | T15: Rural Per Km4 | U15: Total Assets | V15: Local Average Treatment Cost/Unit (£) | W15: Estimated Age (Years) | X15: Estimated Lifespan (Years) | Y15: Age/ Lifespan | Z15: GRC Value (£) | AA15: Annual Depreciation (£) | AB15: Accumulated Depreciation (£) | AC15: DRC Value (£)
C16: Traffic Signs Non-Illuminated | D16: Warning | E16: =IFERROR($W$5*M16,0) -> 0 | F16: =IFERROR($X$5*N16,0) -> 0 | G16: =IFERROR($W$6*O16,0) -> 0 | H16: =IFERROR($X$6*P16,0) -> 0 | I16: =IFERROR($W$7*Q16,0) -> 0 | J16: =IFERROR($X$7*R16,0) -> 0 | K16: =IFERROR($W$8*S16,0) -> 0 | L16: =IFERROR($X$8*T16,0) -> 0 | M16: 7.657894737 | N16: 2.606060606 | O16: 2.333333333 | P16: 4 | Q16: 3.074074074 | R16: 2.666666667 | S16: 1.346938776 | T16: 1.297297297 | U16: =SUM(E16:L16) -> 0 | Y16: =IF(X16=0,0,(W16/X16)) -> 0 | Z16: =V16*U16 -> 0 | AA16: =IF(X16=0,0,(Z16/X16)) -> 0 | AB16: =IF(Y16*Z16>Z16,"Check Age/Lifespan",Y16*Z16) -> 0 | AC16: =IF(AB16="Check Age/Lifespan", "ERROR",Z16-AB16) -> 0
D17: Regulatory | E17: =IFERROR($W$5*M17,0) -> 0 | F17: =IFERROR($X$5*N17,0) -> 0 | G17: =IFERROR($W$6*O17,0) -> 0 | H17: =IFERROR($X$6*P17,0) -> 0 | I17: =IFERROR($W$7*Q17,0) -> 0 | J17: =IFERROR($X$7*R17,0) -> 0 | K17: =IFERROR($W$8*S17,0) -> 0 | L17: =IFERROR($X$8*T17,0) -> 0 | M17: 18 | N17: 5.333333333 | O17: 5.259259259 | P17: 7 | Q17: 5.814814815 | R17: 3.033333333 | S17: 5.826530612 | T17: 2.486486486 | U17: =SUM(E17:L17) -> 0 | Y17: =IF(X17=0,0,(W17/X17)) -> 0 | Z17: =V17*U17 -> 0 | AA17: 0 | AB17: 0 | AC17: 0
D18: Directional | E18: 0 | F18: 0 | G18: 0 | H18: 0 | I18: 0 | J18: 0 | K18: 0 | L18: 0 | M18: 8.184210526 | N18: 3.212121212 | O18: 2.592592593 | P18: 2.8 | Q18: 2.703703704 | R18: 1.566666667 | S18: 0.7568027211 | T18: 2.405405405 | U18: 0 | Y18: 0 | Z18: 0 | AA18: 0 | AB18: 0 | AC18: 0
D19: Informatory | E19: 0 | F19: 0 | G19: 0 | H19: 0 | I19: 0 | J19: 0 | K19: 0 | L19: 0 | M19: 9.394736842 | N19: 1.878787879 | O19: 2 | P19: 0 | Q19: 1.425925926 | R19: 1.033333333 | S19: 1.465986395 | T19: 1.135135135 | U19: 0 | Y19: 0 | Z19: 0 | AA19: 0 | AB19: 0 | AC19: 0
D20: Boundary | E20: 0 | F20: 0 | G20: 0 | H20: 0 | I20: 0 | J20: 0 | K20: 0 | L20: 0 | M20: 0.3157894737 | N20: 0.2727272727 | O20: 0.03703703704 | P20: 0.8 | Q20: 0.2222222222 | R20: 0.1666666667 | S20: 0.01870748299 | T20: 0 | U20: 0 | Y20: 0 | Z20: 0 | AA20: 0 | AB20: 0 | AC20: 0
D21: Non DCC | E21: 0 | F21: 0 | G21: 0 | H21: 0 | I21: 0 | J21: 0 | K21: 0 | L21: 0 | M21: 0 | N21: 0 | O21: 0 | P21: 0 | Q21: 0 | R21: 0 | S21: 0 | T21: 0 | U21: 0 | Y21: 0 | Z21: 0 | AA21: 0 | AB21: 0 | AC21: 0
D22: Parking Directional | E22: 0 | F22: 0 | G22: 0 | H22: 0 | I22: 0 | J22: 0 | K22: 0 | L22: 0 | M22: 1.157894737 | N22: 0 | O22: 0.1481481481 | P22: 0 | Q22: 0.05555555556 | R22: 0 | S22: 0.08503401361 | T22: 0 | U22: 0 | Y22: 0 | Z22: 0 | AA22: 0 | AB22: 0 | AC22: 0
D23: Not Assessed | E23: 0 | F23: 0 | G23: 0 | H23: 0 | I23: 0 | J23: 0 | K23: 0 | L23: 0 | M23: 0.1842105263 | N23: 0.09090909091 | O23: 0.1111111111 | P23: 0 | Q23: 0.03703703704 | R23: 0.9 | S23: 0.4387755102 | T23: 0.7567567568 | U23: 0 | Y23: 0 | Z23: 0 | AA23: 0 | AB23: 0 | AC23: 0
C24: PROW Signs | D24: Metal | E24: 0 | F24: 0 | G24: 0 | H24: 0 | I24: 0 | J24: 0 | K24: 0 | L24: 0 | M24: 0 | N24: 0 | O24: 0 | P24: 0 | Q24: 0 | R24: 0 | S24: 0 | T24: 0 | U24: 0 | Y24: 0 | Z24: 0 | AA24: 0 | AB24: 0 | AC24: 0
D25: Timber | E25: 0 | F25: 0 | G25: 0 | H25: 0 | I25: 0 | J25: 0 | K25: 0 | L25: 0 | M25: 0 | N25: 0 | O25: 0 | P25: 0 | Q25: 0 | R25: 0 | S25: 0 | T25: 0 | U25: 0 | Y25: 0 | Z25: 0 | AA25: 0 | AB25: 0 | AC25: 0
C26: Pedestrian Barriers (Lin m) | D26: Ornamental | E26: 0 | F26: 0 | G26: 0 | H26: 0 | I26: 0 | J26: 0 | K26: 0 | L26: 0 | M26: 25.89 | N26: 0 | O26: 0 | P26: 0 | Q26: 3.48 | R26: 0 | S26: 0.19 | T26: 0 | U26: 0 | Y26: 0 | Z26: 0 | AA26: 0 | AB26: 0 | AC26: 0
D27: Conc post and rail | E27: 0 | F27: 0 | G27: 0 | H27: 0 | I27: 0 | J27: 0 | K27: 0 | L27: 0 | M27: 2.03 | N27: 0 | O27: 0.33 | P27: 0 | Q27: 0 | R27: 0 | S27: 0.7 | T27: 0 | U27: 0 | Y27: 0 | Z27: 0 | AA27: 0 | AB27: 0 | AC27: 0
D28: Kee Klamp Tube | E28: 0 | F28: 0 | G28: 0 | H28: 0 | I28: 0 | J28: 0 | K28: 0 | L28: 0 | M28: 0.24 | N28: 0 | O28: 0.07 | P28: 0 | Q28: 0.5 | R28: 0.2 | S28: 0.38 | T28: 0 | U28: 0 | Y28: 0 | Z28: 0 | AA28: 0 | AB28: 0 | AC28: 0
D29: Other PGR | E29: 0 | F29: 0 | G29: 0 | H29: 0 | I29: 0 | J29: 0 | K29: 0 | L29: 0 | M29: 0.87 | N29: 0 | O29: 0.44 | P29: 0 | Q29: 3.8 | R29: 5.67 | S29: 1.05 | T29: 0 | U29: 0 | Y29: 0 | Z29: 0 | AA29: 0 | AB29: 0 | AC29: 0
D30: Tubular | E30: 0 | F30: 0 | G30: 0 | H30: 0 | I30: 0 | J30: 0 | K30: 0 | L30: 0 | M30: 0.82 | N30: 1.27 | O30: 1.11 | P30: 12.8 | Q30: 0.56 | R30: 0.03 | S30: 10.15 | T30: 0 | U30: 0 | Y30: 0 | Z30: 0 | AA30: 0 | AB30: 0 | AC30: 0
D31: Visi Rail | E31: 0 | F31: 0 | G31: 0 | H31: 0 | I31: 0 | J31: 0 | K31: 0 | L31: 0 | M31: 152.45 | N31: 6.45 | O31: 16.81 | P31: 0 | Q31: 10.57 | R31: 2.33 | S31: 4.55 | T31: 2.86 | U31: 0 | Y31: 0 | Z31: 0 | AA31: 0 | AB31: 0 | AC31: 0
D32: Non standard steel | E32: 0 | F32: 0 | G32: 0 | H32: 0 | I32: 0 | J32: 0 | K32: 0 | L32: 0 | M32: 83.95 | N32: 5.7 | O32: 7.3 | P32: 0 | Q32: 21.72 | R32: 4.2 | S32: 6.98 | T32: 0 | U32: 0 | Y32: 0 | Z32: 0 | AA32: 0 | AB32: 0 | AC32: 0
C33: Safety Fencing (Lin m) | D33: Box Single | E33: 0 | F33: 0 | G33: 0 | H33: 0 | I33: 0 | J33: 0 | K33: 0 | L33: 0 | M33: 216.11 | N33: 29.61 | O33: 0 | P33: 23.4 | Q33: 5.5 | R33: 6.73 | S33: 0.54 | T33: 5.32 | U33: 0 | Y33: 0 | Z33: 0 | AA33: 0 | AB33: 0 | AC33: 0
D34: Box Double | E34: 0 | F34: 0 | G34: 0 | H34: 0 | I34: 0 | J34: 0 | K34: 0 | L34: 0 | M34: 0 | N34: 0 | O34: 0 | P34: 0 | Q34: 0 | R34: 0 | S34: 0 | T34: 0 | U34: 0 | Y34: 0 | Z34: 0 | AA34: 0 | AB34: 0 | AC34: 0
D35: Corr Single - Ten | E35: 0 | F35: 0 | G35: 0 | H35: 0 | I35: 0 | J35: 0 | K35: 0 | L35: 0 | M35: 380.18 | N35: 52.03 | O35: 14.44 | P35: 0.6 | Q35: 5.22 | R35: 9.57 | S35: 1.67 | T35: 2.68 | U35: 0 | Y35: 0 | Z35: 0 | AA35: 0 | AB35: 0 | AC35: 0
D36: Corr Single - Un-Ten | E36: 0 | F36: 0 | G36: 0 | H36: 0 | I36: 0 | J36: 0 | K36: 0 | L36: 0 | M36: 0 | N36: 0 | O36: 0 | P36: 0 | Q36: 0 | R36: 0 | S36: 0 | T36: 0 | U36: 0 | Y36: 0 | Z36: 0 | AA36: 0 | AB36: 0 | AC36: 0
D37: Corr Double - Ten | E37: 0 | F37: 0 | G37: 0 | H37: 0 | I37: 0 | J37: 0 | K37: 0 | L37: 0 | M37: 0 | N37: 0 | O37: 0 | P37: 0 | Q37: 0 | R37: 0 | S37: 0 | T37: 0 | U37: 0 | Y37: 0 | Z37: 0 | AA37: 0 | AB37: 0 | AC37: 0
D38: Corr - Un-Ten | E38: 0 | F38: 0 | G38: 0 | H38: 0 | I38: 0 | J38: 0 | K38: 0 | L38: 0 | M38: 0 | N38: 0 | O38: 0 | P38: 0 | Q38: 0 | R38: 0 | S38: 0 | T38: 0 | U38: 0 | Y38: 0 | Z38: 0 | AA38: 0 | AB38: 0 | AC38: 0
D39: Wire Rope | E39: 0 | F39: 0 | G39: 0 | H39: 0 | I39: 0 | J39: 0 | K39: 0 | L39: 0 | M39: 0 | N39: 0 | O39: 0 | P39: 0 | Q39: 0 | R39: 0 | S39: 0 | T39: 0 | U39: 0 | Y39: 0 | Z39: 0 | AA39: 0 | AB39: 0 | AC39: 0
C40: Bus Stops | E40: 0 | F40: 0 | G40: 0 | H40: 0 | I40: 0 | J40: 0 | K40: 0 | L40: 0 | M40: 0 | N40: 0 | O40: 0 | P40: 0 | Q40: 0 | R40: 0 | S40: 0 | T40: 0 | U40: 0 | Y40: 0 | Z40: 0 | AA40: 0 | AB40: 0 | AC40: 0
C41: Bus Shelters | D41: Bus Shelter (unspec) | E41: 0 | F41: 0 | G41: 0 | H41: 0 | I41: 0 | J41: 0 | K41: 0 | L41: 0 | M41: 0.58 | N41: 0.12 | O41: 0.33 | P41: 0 | Q41: 0.59 | R41: 0.07 | S41: 0.14 | T41: 0.02857142857 | U41: 0 | Y41: 0 | Z41: 0 | AA41: 0 | AB41: 0 | AC41: 0
D42: Concrete | E42: 0 | F42: 0 | G42: 0 | H42: 0 | I42: 0 | J42: 0 | K42: 0 | L42: 0 | M42: 0 | N42: 0 | O42: 0 | P42: 0 | Q42: 0 | R42: 0 | S42: 0 | T42: 0 | U42: 0 | Y42: 0 | Z42: 0 | AA42: 0 | AB42: 0 | AC42: 0
D43: Timber | E43: 0 | F43: 0 | G43: 0 | H43: 0 | I43: 0 | J43: 0 | K43: 0 | L43: 0 | M43: 0 | N43: 0 | O43: 0 | P43: 0 | Q43: 0 | R43: 0 | S43: 0 | T43: 0 | U43: 0 | Y43: 0 | Z43: 0 | AA43: 0 | AB43: 0 | AC43: 0
D44: Glass Enclosed | E44: 0 | F44: 0 | G44: 0 | H44: 0 | I44: 0 | J44: 0 | K44: 0 | L44: 0 | M44: 0 | N44: 0 | O44: 0 | P44: 0 | Q44: 0 | R44: 0 | S44: 0 | T44: 0 | U44: 0 | Y44: 0 | Z44: 0 | AA44: 0 | AB44: 0 | AC44: 0
D45: Glass Cantilever | E45: 0 | F45: 0 | G45: 0 | H45: 0 | I45: 0 | J45: 0 | K45: 0 | L45: 0 | M45: 0 | N45: 0 | O45: 0 | P45: 0 | Q45: 0 | R45: 0 | S45: 0 | T45: 0 | U45: 0 | Y45: 0 | Z45: 0 | AA45: 0 | AB45: 0 | AC45: 0
D46: Metal | E46: 0 | F46: 0 | G46: 0 | H46: 0 | I46: 0 | J46: 0 | K46: 0 | L46: 0 | M46: 0 | N46: 0 | O46: 0 | P46: 0 | Q46: 0 | R46: 0 | S46: 0 | T46: 0 | U46: 0 | Y46: 0 | Z46: 0 | AA46: 0 | AB46: 0 | AC46: 0
C47: Grit Bins | E47: 0 | F47: 0 | G47: 0 | H47: 0 | I47: 0 | J47: 0 | K47: 0 | L47: 0 | M47: 0.53 | N47: 0.33 | O47: 0.15 | P47: 0 | Q47: 1.37 | R47: 0.03 | S47: 0.63 | T47: 0 | U47: 0 | Y47: 0 | Z47: 0 | AA47: 0 | AB47: 0 | AC47: 0
C48: Bollards Non Illum | D48: Cast Iron | E48: 0 | F48: 0 | G48: 0 | H48: 0 | I48: 0 | J48: 0 | K48: 0 | L48: 0 | M48: 9.47 | N48: 0.06 | O48: 1.19 | P48: 0 | Q48: 3.3 | R48: 0.17 | S48: 1.62 | T48: 0 | U48: 0 | Y48: 0 | Z48: 0 | AA48: 0 | AB48: 0 | AC48: 0
D49: Concrete | E49: 0 | F49: 0 | G49: 0 | H49: 0 | I49: 0 | J49: 0 | K49: 0 | L49: 0 | M49: 0.95 | N49: 0.06 | O49: 1 | P49: 0 | Q49: 0.74 | R49: 3.53 | S49: 2.13 | T49: 1.24 | U49: 0 | Y49: 0 | Z49: 0 | AA49: 0 | AB49: 0 | AC49: 0
D50: Plastic | E50: 0 | F50: 0 | G50: 0 | H50: 0 | I50: 0 | J50: 0 | K50: 0 | L50: 0 | M50: 2.66 | N50: 11.82 | O50: 2.81 | P50: 10.2 | Q50: 4.31 | R50: 2.37 | S50: 1.78 | T50: 0.35 | U50: 0 | Y50: 0 | Z50: 0 | AA50: 0 | AB50: 0 | AC50: 0
D51: Geo | E51: 0 | F51: 0 | G51: 0 | H51: 0 | I51: 0 | J51: 0 | K51: 0 | L51: 0 | M51: 0.08 | N51: 0 | O51: 0 | P51: 0 | Q51: 0 | R51: 0 | S51: 0 | T51: 0 | U51: 0 | Y51: 0 | Z51: 0 | AA51: 0 | AB51: 0 | AC51: 0
D52: Other | E52: 0 | F52: 0 | G52: 0 | H52: 0 | I52: 0 | J52: 0 | K52: 0 | L52: 0 | M52: 0.42 | N52: 0 | O52: 0 | P52: 0 | Q52: 0.33 | R52: 1.5 | S52: 0.1 | T52: 0 | U52: 0 | Y52: 0 | Z52: 0 | AA52: 0 | AB52: 0 | AC52: 0
D53: Steel | E53: 0 | F53: 0 | G53: 0 | H53: 0 | I53: 0 | J53: 0 | K53: 0 | L53: 0 | M53: 2.08 | N53: 0.52 | O53: 2.81 | P53: 12 | Q53: 3.8 | R53: 3.1 | S53: 2.33 | T53: 0 | U53: 0 | Y53: 0 | Z53: 0 | AA53: 0 | AB53: 0 | AC53: 0
D54: Timber | E54: 0 | F54: 0 | G54: 0 | H54: 0 | I54: 0 | J54: 0 | K54: 0 | L54: 0 | M54: 5 | N54: 2.79 | O54: 0.3 | P54: 0 | Q54: 1.43 | R54: 0.97 | S54: 2.82 | T54: 1.14 | U54: 0 | Y54: 0 | Z54: 0 | AA54: 0 | AB54: 0 | AC54: 0
C55: Street Furniture | D55: Bench | E55: 0 | F55: 0 | G55: 0 | H55: 0 | I55: 0 | J55: 0 | K55: 0 | L55: 0 | M55: 3.32 | N55: 0.03 | O55: 0.33 | P55: 0 | Q55: 0.52 | R55: 0.37 | S55: 0.26 | T55: 0.05 | U55: 0 | Y55: 0 | Z55: 0 | AA55: 0 | AB55: 0 | AC55: 0
D56: Freestanding Planter | E56: 0 | F56: 0 | G56: 0 | H56: 0 | I56: 0 | J56: 0 | K56: 0 | L56: 0 | M56: 1.34 | N56: 0 | O56: 0 | P56: 0 | Q56: 0.44 | R56: 0 | S56: 0.02 | T56: 0 | U56: 0 | Y56: 0 | Z56: 0 | AA56: 0 | AB56: 0 | AC56: 0
D57: Built In Planter | E57: 0 | F57: 0 | G57: 0 | H57: 0 | I57: 0 | J57: 0 | K57: 0 | L57: 0 | M57: 0.97 | N57: 0 | O57: 0 | P57: 0.2 | Q57: 0.04 | R57: 0 | S57: 0.07 | T57: 0 | U57: 0 | Y57: 0 | Z57: 0 | AA57: 0 | AB57: 0 | AC57: 0
D58: Sculpture | E58: 0 | F58: 0 | G58: 0 | H58: 0 | I58: 0 | J58: 0 | K58: 0 | L58: 0 | M58: 0.42 | N58: 0 | O58: 0 | P58: 0 | Q58: 0 | R58: 0.03 | S58: 0.01 | T58: 0 | U58: 0 | Y58: 0 | Z58: 0 | AA58: 0 | AB58: 0 | AC58: 0
C59: Street Name Plates | D59: Recycled Dibond | E59: 0 | F59: 0 | G59: 0 | H59: 0 | I59: 0 | J59: 0 | K59: 0 | L59: 0 | M59: 0.47 | N59: 0.03 | O59: 0.19 | P59: 0.4 | Q59: 0.39 | R59: 0.2 | S59: 0.58 | T59: 0.38 | U59: 0 | Y59: 0 | Z59: 0 | AA59: 0 | AB59: 0 | AC59: 0
D60: Any other material | E60: 0 | F60: 0 | G60: 0 | H60: 0 | I60: 0 | J60: 0 | K60: 0 | L60: 0 | M60: 2.13 | N60: 0.48 | O60: 1.15 | P60: 1 | Q60: 1.93 | R60: 1.53 | S60: 6.78 | T60: 1.68 | U60: 0 | Y60: 0 | Z60: 0 | AA60: 0 | AB60: 0 | AC60: 0
C61: Hooped Barrier | D61: Hooped Barrier | E61: 0 | F61: 0 | G61: 0 | H61: 0 | I61: 0 | J61: 0 | K61: 0 | L61: 0 | M61: 0.16 | N61: 0 | O61: 0.3 | P61: 0 | Q61: 0.33 | R61: 0 | S61: 0.58 | T61: 0.43 | U61: 0 | Y61: 0 | Z61: 0 | AA61: 0 | AB61: 0 | AC61: 0
C62: Additional Assets | D62: Add Additional Assets Here | M62: =IFERROR(E62/$W$5,0) -> 0 | N62: =IFERROR(F62/$X$5,0) -> 0 | O62: =IFERROR(G62/$W$6,0) -> 0 | P62: =IFERROR(H62/$X$6,0) -> 0 | Q62: =IFERROR(I62/$W$7,0) -> 0 | R62: =IFERROR(J62/$X$7,0) -> 0 | S62: =IFERROR(K62/$W$8,0) -> 0 | T62: =IFERROR(L62/$X$8,0) -> 0 | U62: =SUM(E62:L62) -> 0 | Y62: =IF(X62=0,0,(W62/X62)) -> 0 | Z62: =V62*U62 -> 0 | AA62: =IF(X62=0,0,(Z62/X62)) -> 0 | AB62: =IF(Y62*Z62>Z62,"Check Age/Lifespan",Y62*Z62) -> 0 | AC62: =IF(AB62="Check Age/Lifespan", "ERROR",Z62-AB62) -> 0
D63: GROSS REPLACEMENT COST (GRC) (£,000s) | E63: =SUM(SFMedway[GRC Value (£)])/1000 -> 0
D64: ACCUMULATED DEPRECIATION (£,000s) | E64: =SUM(SFMedway[Accumulated Depreciation (£)])/1000 -> 0
D65: ANNUAL DEPRECIATION (£,000s) | E65: =SUM(SFMedway[Annual Depreciation (£)])/1000 -> 0
D66: DEPRECIATED REPLACEMENT COST (DRC) (£,000s) | E66: =SUM(SFMedway[DRC Value (£)])/1000 -> 0
C68: Notes/Evidance
C80: Change Register | D80: Change
C81: Version 2.5, Nov 2015 | D81: * Cell information (?) button
D82: * Auto populate/manual input in the Network Length Table
D83: * Table layout to allow authorities to copy and paste data from another worksheet

Sheet Land GRC
C3: LAND GRC
C5: Step 1 | D5: Select a REGION
C6: Step 2 | D6: Select your AUTHORITY (If you are Scotland or Wales please fill in the appropriate yellow cells)
C7: Step 3 | D7: Enter a VERGE WIDTH
C8: Step 4 | D8: If your VERGE AREA is not pre-populated or you wish to enter your own please do so in VERGE AREA
C10: Note 1 | D10: Three components combine to form the area of the highway network and are set against land values. These three elements are; the carriageway, footway and maintained grass verge area.
C11: Note 2 | D11: The summation of these individual areas provides the total highway area that is maintained by an authority.
C12: Note 3 | D12: The verge width entered should be the summation of the average verge width on both sides of the carriageway.
C13: Note 4 | D13: If the average width for each side of the carriageway is unknown, then authorities can use Hertfordshire as an example where the Urban verge width is 1.21 and the Rural Verge Width is 1.61
C14: Note 5 | D14: Cycleways (bound and unbound) are included in Footways and Cycleways Area for Urban only
C16: Rate for Authority | D16: Urban Rate | E16: Rural Rate
C17: Select_a_Region | D17: =IF(C17="Select a Region",0,IFERROR(VLOOKUP(C18,'Land Values'!B:H,7,FALSE),0)) -> 0 | E17: =IF(C17="Select a Region",0,IFERROR(VLOOKUP(C18,'Land Values'!B:G,6,FALSE),0)) -> 0
C18: Pick your Authority
C19: Scotland
C20: Wales
C22: Category | D22: Urban (m²) | E22: Urban Rate (£/m2) | F22: Rural (m²) | G22: Rural Rate (£/m2)
C23: Carriageway Area | D23: =SUM('Carriageways & Footways GRC'!F20+'Carriageways & Footways GRC'!F22+'Carriageways & Footways GRC'!F24+'Carriageways & Footways GRC'!F26) -> 0 | E23: =IF(D17>0,D17,IF(D19>0,D19,IF(D20>0,D20,0))) -> 0 | F23: =SUM('Carriageways & Footways GRC'!F19+'Carriageways & Footways GRC'!F21+'Carriageways & Footways GRC'!F23+'Carriageways & Footways GRC'!F25+'Carriageways & Footways GRC'!F27) -> 0 | G23: =IF(E17>0,E17,IF(E19>0,E19,IF(E20>0,E20,0))) -> 0
C24: Footway and Cycleway Area | D24: =SUM('Carriageways & Footways GRC'!P19+'Carriageways & Footways GRC'!P20+'Carriageways & Footways GRC'!P22+'Carriageways & Footways GRC'!P24+'Carriageways & Footways GRC'!P26 +'Carriageways & Footways GRC'!P28+'Carriageways & Footways GRC'!P29) -> 0 | F24: =SUM('Carriageways & Footways GRC'!P21+'Carriageways & Footways GRC'!P23+'Carriageways & Footways GRC'!P25+'Carriageways & Footways GRC'!P27) -> 0
C25: Highway Area | D25: =D23+D24 -> 0 | F25: =F23+F24 -> 0
C26: Verge Width (m)
C27: Verge Area | D27: =IF(1000*$D$26*SUM('Carriageways & Footways GRC'!D20,'Carriageways & Footways GRC'!D22,'Carriageways & Footways GRC'!D24,'Carriageways & Footways GRC'!D26)>0,1000*$D$26*SUM('Carriageways & Footways GRC'!D20,'Carriageways & Footways GRC'!D22,'Carriageways & Footways GRC'!D24,'Carriageways & Footways GRC'!D26),"Please Enter Verge Width or Area") -> Please Enter Verge Width or Area | F27: =IF(1000*$F$26*SUM('Carriageways & Footways GRC'!D19,'Carriageways & Footways GRC'!D21,'Carriageways & Footways GRC'!D23,'Carriageways & Footways GRC'!D25,'Carriageways & Footways GRC'!D27)>0,1000*$F$26*SUM('Carriageways & Footways GRC'!D19,'Carriageways & Footways GRC'!D21,'Carriageways & Footways GRC'!D23,'Carriageways & Footways GRC'!D25,'Carriageways & Footways GRC'!D27),"Please Enter Verge Width or Area") -> Please Enter Verge Width or Area | H27: =IF(OR(D27=0,F27=0),"Check Verge Area"," ") -> 
C28: Total Land Area (m2) | D28: =IFERROR(D25+D27+F25+F27,0) -> 0
C29: Total Land Value (£,000's) | D29: =IFERROR(((D25+D27)*E23+(F25+F27)*G23)/1000,0) -> 0
C31: Notes/Evidence
B40: Change Register | D40: Change
B41: Version 2.5, Nov 2015 | D41: * Help button in title bar ( ὶ ) button
D42: * Cell information (?) button
D43: * Select Region and then Authority for an easier search
D44: * Auto populate/manual input for Verge Area

Sheet Certificate (hidden)
E5: VALUATION TOOLKIT
E7: Certificate of Valuation for
G9: Hull
D14: Valuation Toolkit Version : | G14: ='Home Page'!C34 -> 15/16 Valuation Toolkit, Version 2.6, Feb 2016 | M14: Date of Issue: | O14: =NOW() -> 2025-03-31T10:10:02.360
D15: Valuation Variables Version: | G15: ='Valuation Variables'!B8 -> Version 1.4 | M15: Time of Issue: | O15: =NOW() -> 45747.42364
F17: GRC Closing Balance | I17: Accumulated Depreciation Closing Balance | L17: DRC Closing Balance
D18: Carriageway | F18: ='Valuation Summary'!D30 -> 0 | I18: ='Valuation Summary'!D42 -> 0 | L18: ='Valuation Summary'!D45 -> 0
D19: Footways + Cycleways | F19: ='Valuation Summary'!E30 -> 0 | I19: ='Valuation Summary'!E42 -> 0 | L19: ='Valuation Summary'!E45 -> 0
D20: Structures | F20: ='Valuation Summary'!F30 -> 0 | I20: ='Valuation Summary'!F42 -> 0 | L20: ='Valuation Summary'!F45 -> 0
D21: Street Lighting | F21: ='Valuation Summary'!G30 -> 0 | I21: ='Valuation Summary'!G42 -> 0 | L21: ='Valuation Summary'!G45 -> 0
D22: Traffic Management | F22: ='Valuation Summary'!H30 -> 0 | I22: ='Valuation Summary'!H42 -> 0 | L22: ='Valuation Summary'!H45 -> 0
D23: Street furniture | F23: ='Valuation Summary'!I30 -> 0 | I23: ='Valuation Summary'!I42 -> 0 | L23: ='Valuation Summary'!I45 -> 0
D24: Land | F24: ='Valuation Summary'!J30 -> 0 | I24: - | L24: -
D25: TOTAL | F25: =SUM(F18:H24) -> 0 | I25: =SUM(I18:K23) -> 0 | L25: =SUM(L18:N23) -> 0

Sheet Valuation Variables (hidden)
B2: Valuation Variable for the Valuation Toolkit
B4: This Workbook contains Regional Factors, HAMFIG Default GRC Rates and Land Values
B5: The Version Control shows when the rates were last updated in this workbook
B7: Version Control | C7: Regional Factors | D7: GRC Rates | E7: Land Values
B8: Version 1.4 | C8: 2017-06-21 | D8: 2018-06-06 | E8: 2018-06-13

Sheet Regions (hidden)
A1: Regions
A2: Select _a_Region
A3: East_Midlands
A4: East_of_England
A5: Greater_London
A6: North_East
A7: North_West
A8: Scotland
A9: South_East
A10: South_West
A11: Wales
A12: West_Midlands
A13: Yorkshire_and_the_Humber

Sheet Regional Factors (hidden)
A1: Region | B1: Authority | C1: Regional Factor
A2: Select a Region | B2: Pick your Authority | C2: 0
A3: East Midlands | B3: Derby | C3: 96
A4: East Midlands | B4: Derbyshire | C4: 102
A5: East Midlands | B5: Leicester | C5: 99
A6: East Midlands | B6: Leicestershire | C6: 100
A7: East Midlands | B7: Lincolnshire | C7: 101
A8: East Midlands | B8: Northamptonshire | C8: 106
A9: East Midlands | B9: Nottingham | C9: 101
A10: East Midlands | B10: Nottinghamshire | C10: 100
A11: East Midlands | B11: Rutland | C11: 105
A12: East of England | B12: Bedford | C12: 99
A13: East of England | B13: Cambridgeshire | C13: 98
A14: East of England | B14: Central Bedfordshire | C14: 102
A15: East of England | B15: Essex | C15: 102
A16: East of England | B16: Hertfordshire | C16: 105
A17: East of England | B17: Luton | C17: 104
A18: East of England | B18: Norfolk | C18: 95
A19: East of England | B19: Peterborough | C19: 96
A20: East of England | B20: Southend-On-Sea | C20: 100
A21: East of England | B21: Suffolk | C21: 96
A22: East of England | B22: Thurrock | C22: 99
A23: Greater London | B23: Barking And Dagenham | C23: 120
A24: Greater London | B24: Barnet | C24: 124
A25: Greater London | B25: Bexley | C25: 127
A26: Greater London | B26: Brent | C26: 126
A27: Greater London | B27: Bromley | C27: 124
A28: Greater London | B28: Camden | C28: 136
A29: Greater London | B29: City Of London | C29: 126
A30: Greater London | B30: Croydon | C30: 127
A31: Greater London | B31: Ealing | C31: 132
A32: Greater London | B32: Enfield | C32: 122
A33: Greater London | B33: Greater London | C33: 128
A34: Greater London | B34: Greenwich | C34: 128
A35: Greater London | B35: Hackney | C35: 130
A36: Greater London | B36: Hammersmith And Fulham | C36: 134
A37: Greater London | B37: Haringey | C37: 134
A38: Greater London | B38: Harrow | C38: 120
A39: Greater London | B39: Havering | C39: 111
A40: Greater London | B40: Hillingdon | C40: 121
A41: Greater London | B41: Hounslow | C41: 120
A42: Greater London | B42: Islington | C42: 132
A43: Greater London | B43: Kensington And Chelsea | C43: 140
A44: Greater London | B44: Kingston Upon Thames | C44: 129
A45: Greater London | B45: Lambeth | C45: 133
A46: Greater London | B46: Lewisham | C46: 125
A47: Greater London | B47: Merton | C47: 128
A48: Greater London | B48: Newham | C48: 123
A49: Greater London | B49: Redbridge | C49: 118
A50: Greater London | B50: Richmond Upon Thames | C50: 127
A51: Greater London | B51: Southwark | C51: 132
A52: Greater London | B52: Sutton | C52: 124
A53: Greater London | B53: Tower Hamlets | C53: 131
A54: Greater London | B54: Transport for London | C54: 127
A55: Greater London | B55: Waltham Forest | C55: 122
A56: Greater London | B56: Wandsworth | C56: 134
A57: Greater London | B57: Westminster | C57: 135
A58: North East | B58: County Durham | C58: 96
A59: North East | B59: Darlington | C59: 104
A60: North East | B60: Gateshead | C60: 99
A61: North East | B61: Hartlepool | C61: 94
A62: North East | B62: Middlesbrough | C62: 100
A63: North East | B63: Newcastle Upon Tyne | C63: 96
A64: North East | B64: North Tyneside | C64: 97
A65: North East | B65: Northumberland | C65: 99
A66: North East | B66: Redcar And Cleveland | C66: 95
A67: North East | B67: South Tyneside | C67: 94
A68: North East | B68: Stockton-On-Tees | C68: 97
A69: North East | B69: Sunderland | C69: 92
A70: North East | B70: Tyne And Wear | C70: 96
A71: North West | B71: Blackburn With Darwen | C71: 94
A72: North West | B72: Blackpool | C72: 94
A73: North West | B73: Bolton | C73: 91
A74: North West | B74: Bury | C74: 91
A75: North West | B75: Cheshire East | C75: 92
A76: North West | B76: Cheshire West And Chester | C76: 92
A77: North West | B77: Cumbria | C77: 93
A78: North West | B78: Greater Manchester | C78: 92
A79: North West | B79: Halton | C79: 91
A80: North West | B80: Knowsley | C80: 90
A81: North West | B81: Lancashire | C81: 92
A82: North West | B82: Liverpool | C82: 90
A83: North West | B83: Manchester | C83: 95
A84: North West | B84: Merseyside | C84: 92
A85: North West | B85: Oldham | C85: 90
A86: North West | B86: Rochdale | C86: 91
A87: North West | B87: Salford | C87: 93
A88: North West | B88: Sefton | C88: 96
A89: North West | B89: St Helens | C89: 93
A90: North West | B90: Stockport | C90: 91
A91: North West | B91: Tameside | C91: 91
A92: North West | B92: Trafford | C92: 92
A93: North West | B93: Warrington | C93: 90
A94: North West | B94: Wigan | C94: 89
A95: North West | B95: Wirral | C95: 93
A96: Scotland | B96: Aberdeen City | C96: 84
A97: Scotland | B97: Aberdeenshire | C97: 85
A98: Scotland | B98: Angus | C98: 89
A99: Scotland | B99: Argyll And Bute | C99: 103
A100: Scotland | B100: City Of Edinburgh | C100: 94
A101: Scotland | B101: Clackmannanshire | C101: 91
A102: Scotland | B102: Dumfries And Galloway | C102: 87
A103: Scotland | B103: Dundee City | C103: 90
A104: Scotland | B104: East Ayrshire | C104: 91
A105: Scotland | B105: East Dunbartonshire | C105: 88
A106: Scotland | B106: East Lothian | C106: 92
A107: Scotland | B107: East Renfrewshire | C107: 99
A108: Scotland | B108: Eilean Siar | C108: 106
A109: Scotland | B109: Falkirk | C109: 85
A110: Scotland | B110: Fife | C110: 88
A111: Scotland | B111: Glasgow City | C111: 92
A112: Scotland | B112: Highland | C112: 88
A113: Scotland | B113: Inverclyde | C113: 91
A114: Scotland | B114: Midlothian | C114: 91
A115: Scotland | B115: Moray | C115: 85
A116: Scotland | B116: North Ayrshire | C116: 93
A117: Scotland | B117: North Lanarkshire | C117: 90
A118: Scotland | B118: Orkney Islands | C118: 99
A119: Scotland | B119: Perth And Kinross | C119: 89
A120: Scotland | B120: Renfrewshire | C120: 91
A121: Scotland | B121: Scottish Borders | C121: 92
A122: Scotland | B122: Shetland Islands | C122: 113
A123: Scotland | B123: South Ayrshire | C123: 96
A124: Scotland | B124: South Lanarkshire | C124: 90
A125: Scotland | B125: Stirling | C125: 87
A126: Scotland | B126: West Dunbartonshire | C126: 86
A127: Scotland | B127: West Lothian | C127: 91
A128: South East | B128: Bracknell Forest | C128: 118
A129: South East | B129: Brighton And Hove | C129: 117
A130: South East | B130: Buckinghamshire | C130: 114
A131: South East | B131: East Sussex | C131: 117
A132: South East | B132: Hampshire | C132: 112
A133: South East | B133: Isle Of Wight | C133: 111
A134: South East | B134: Kent | C134: 117
A135: South East | B135: Medway | C135: 117
A136: South East | B136: Milton Keynes | C136: 108
A137: South East | B137: Oxfordshire | C137: 111
A138: South East | B138: Portsmouth | C138: 108
A139: South East | B139: Reading | C139: 115
A140: South East | B140: Slough | C140: 113
A141: South East | B141: Southampton | C141: 112
A142: South East | B142: Surrey | C142: 121
A143: South East | B143: West Berkshire | C143: 114
A144: South East | B144: West Sussex | C144: 115
A145: South East | B145: Windsor And Maidenhead | C145: 119
A146: South East | B146: Wokingham | C146: 114
A147: South West | B147: Bath And North East Somerset | C147: 102
A148: South West | B148: Bournemouth | C148: 103
A149: South West | B149: Bristol | C149: 100
A150: South West | B150: Cornwall | C150: 100
A151: South West | B151: Devon | C151: 98
A152: South West | B152: Dorset | C152: 100
A153: South West | B153: Gloucestershire | C153: 99
A154: South West | B154: North Somerset | C154: 97
A155: South West | B155: Plymouth | C155: 97
A156: South West | B156: Poole | C156: 99
A157: South West | B157: Somerset | C157: 97
A158: South West | B158: South Gloucestershire | C158: 92
A159: South West | B159: Swindon | C159: 97
A160: South West | B160: Torbay | C160: 100
A161: South West | B161: Wiltshire | C161: 99
A162: Wales | B162: Blaenau Gwent | C162: 92
A163: Wales | B163: Bridgend | C163: 90
A164: Wales | B164: Caerphilly | C164: 91
A165: Wales | B165: Cardiff | C165: 91
A166: Wales | B166: Carmarthenshire | C166: 94
A167: Wales | B167: Ceredigion | C167: 96
A168: Wales | B168: Conwy | C168: 90
A169: Wales | B169: Denbighshire | C169: 86
A170: Wales | B170: Flintshire | C170: 86
A171: Wales | B171: Gwynedd | C171: 93
A172: Wales | B172: Isle Of Anglesey | C172: 91
A173: Wales | B173: Merthyr Tydfil | C173: 91
A174: Wales | B174: Monmouthshire | C174: 97
A175: Wales | B175: Neath Port Talbot | C175: 85
A176: Wales | B176: Newport | C176: 92
A177: Wales | B177: Pembrokeshire | C177: 89
A178: Wales | B178: Powys | C178: 94
A179: Wales | B179: Rhondda Cynon Taf | C179: 90
A180: Wales | B180: Swansea | C180: 90
A181: Wales | B181: Torfaen | C181: 89
A182: Wales | B182: Vale Of Glamorgan | C182: 93
A183: Wales | B183: Wrexham | C183: 89
A184: West Midlands | B184: Birmingham | C184: 96
A185: West Midlands | B185: Coventry | C185: 96
A186: West Midlands | B186: Dudley | C186: 94
A187: West Midlands | B187: Herefordshire | C187: 93
A188: West Midlands | B188: Sandwell | C188: 97
A189: West Midlands | B189: Shropshire | C189: 95
A190: West Midlands | B190: Solihull | C190: 95
A191: West Midlands | B191: Staffordshire | C191: 94
A192: West Midlands | B192: Stoke-On-Trent | C192: 94
A193: West Midlands | B193: Telford And Wrekin | C193: 91
A194: West Midlands | B194: Walsall | C194: 93
A195: West Midlands | B195: Warwickshire | C195: 98
A196: West Midlands | B196: West Midlands | C196: 96
A197: West Midlands | B197: Wolverhampton | C197: 95
A198: West Midlands | B198: Worcestershire | C198: 98
A199: Yorkshire and the Humber | B199: Barnsley | C199: 89
A200: Yorkshire and the Humber | B200: Bradford | C200: 89
... 15 more rows

Sheet GRC Rates (hidden)
A1: Road Classification | B1: HAMFIG Default GRC Rate (£/m2) | C1: HAMFIG Default GRC Rate (£/m2) - Linear Items | D1: Footway Hierarchy | E1: HAMFIG Default GRC Rate (£/m2) | F1: Inflation year | G1: Inflation Rate
A2: M (all) | B2: 160.91 | C2: 715.13 | D2: 1A Urban | E2: 251.69 | F2: Inflation - Q1 2010 to Q2 2017 | G2: 1.154929577
A3: A Urban | B3: 136.04 | C3: 604.6 | D3: 1 Urban | E3: 82.35
A4: A Rural | B4: 107.73 | C4: 457.98 | D4: 1 Rural | E4: 74.84
A5: B Urban | B5: 126.86 | C5: 554.47 | D5: 2 Urban | E5: 75.65
A6: B Rural | B6: 100.16 | C6: 255.15 | D6: 2 Rural | E6: 68.7
A7: C Urban | B7: 104.7 | C7: 482.58 | D7: 3 Urban | E7: 67.44
A8: C Rural | B8: 79.92 | C8: 217.98 | D8: 3 Rural | E8: 61.24
A9: U/C Urban | B9: 96.69 | C9: 352.39 | D9: 4 Urban | E9: 64.75
A10: U/C Rural | B10: 74.87 | C10: 166.08 | D10: 4 Rural | E10: 61.02
D11: Cycleways Bound
D12: Cycleways Unbound

Sheet Land Values (hidden)
A1: GSS_Code | B1: LA | C1: Ceremonial County | D1: Region | E1: Total Rural Area | F1: Total Urban Area | G1: Rural_per_m2 | H1: Urban_per_m2
B2: Pick your Authority | D2: Select a Region | G2: 0 | H2: 0
A3: E06000015 | B3: Derby | C3: Derbyshire | D3: East Midlands | E3: 279156.8102 | F3: 6927018.912 | G3: 2.0982 | H3: 119.063
A4: E10000007 | B4: Derbyshire | C4: Derbyshire | D4: East Midlands | E4: 33656307.63 | F4: 16320502.34 | G4: 2.0982 | H4: 118.9586
A5: E06000016 | B5: Leicester | C5: Leicestershire | D5: East Midlands | E5: 158938.8134 | F5: 7831196.652 | G5: 2.0982 | H5: 179.5672
A6: E10000018 | B6: Leicestershire | C6: Leicestershire | D6: East Midlands | E6: 25578816.98 | F6: 13620039.21 | G6: 2.0982 | H6: 155.3286
A7: E10000019 | B7: Lincolnshire | C7: Lincolnshire | D7: East Midlands | E7: 68145547.35 | F7: 10660423.4 | G7: 2.0982 | H7: 105.5556
A8: E10000021 | B8: Northamptonshire | C8: Northamptonshire | D8: East Midlands | E8: 25297101.31 | F8: 13599117.73 | G8: 2.0982 | H8: 174.652
A9: E06000018 | B9: Nottingham | C9: Nottinghamshire | D9: East Midlands | E9: 91925.72928 | F9: 7630929.884 | G9: 2.0982 | H9: 147.0834
A10: E10000024 | B10: Nottinghamshire | C10: Nottinghamshire | D10: East Midlands | E10: 24474597.78 | F10: 17874372.26 | G10: 2.0982 | H10: 138.4004
A11: E06000017 | B11: Rutland | C11: Rutland | D11: East Midlands | E11: 4332579.356 | F11: 420521.5872 | G11: 2.0982 | H11: 181.2839
A12: E06000055 | B12: Bedford | C12: Bedfordshire | D12: East of England | E12: 4772992.435 | F12: 3106967.34 | G12: 1.8067 | H12: 257.6333
A13: E06000056 | B13: Central Bedfordshire | C13: Bedfordshire | D13: East of England | E13: 8386388.145 | F13: 4142660.671 | G13: 1.8067 | H13: 270.8413
A14: E06000032 | B14: Luton | C14: Bedfordshire | D14: East of England | E14: 82752.46848 | F14: 4309935.886 | G14: 1.8067 | H14: 236.8908
A15: E10000003 | B15: Cambridgeshire | C15: Cambridgeshire | D15: East of England | E15: 31352322.48 | F15: 8632505.123 | G15: 1.9572 | H15: 259.38
A16: E06000031 | B16: Peterborough | C16: Cambridgeshire | D16: East of England | E16: 3708894.182 | F16: 4702261.766 | G16: 1.8067 | H16: 187.2267
A17: E10000012 | B17: Essex | C17: Essex | D17: East of England | E17: 42665560.19 | F17: 29003275.7 | G17: 1.8067 | H17: 352.6762
A18: E06000033 | B18: Southend-on-Sea | C18: Essex | D18: East of England | E18: 48714.84288 | F18: 4362593.622 | G18: 1.8067 | H18: 352.6762
A19: E06000034 | B19: Thurrock | C19: Essex | D19: East of England | E19: 1699805.226 | F19: 3539848.689 | G19: 1.8067 | H19: 392.5169
A20: E10000015 | B20: Hertfordshire | C20: Hertfordshire | D20: East of England | E20: 18375103.55 | F20: 26743772.82 | G20: 1.9572 | H20: 333.5772
A21: E10000020 | B21: Norfolk | C21: Norfolk | D21: East of England | E21: 72969330.68 | F21: 12762435.88 | G21: 1.9572 | H21: 144.2392
A22: E10000029 | B22: Suffolk | C22: Suffolk | D22: East of England | E22: 47260881.04 | F22: 13445554.13 | G22: 1.9572 | H22: 188.5376
A23: E09000002 | B23: Barking and Dagenham | C23: Greater London | D23: London | E23: 18443.08224 | F23: 3283995.18 | G23: 3.1679 | H23: 597.0843
A24: E09000003 | B24: Barnet | C24: Greater London | D24: London | E24: 241691.2819 | F24: 7292420.467 | G24: 3.1679 | H24: 601.7391
A25: E09000004 | B25: Bexley | C25: Greater London | D25: London | E25: 149234.4691 | F25: 5286405.358 | G25: 3.1679 | H25: 564.2998
A26: E09000005 | B26: Brent | C26: Greater London | D26: London | E26: 4683.19104 | F26: 4848985.659 | G26: 3.1679 | H26: 601.7391
A27: E09000006 | B27: Bromley | C27: Greater London | D27: London | E27: 916843.2768 | F27: 7848915.529 | G27: 3.1679 | H27: 564.2998
A28: E09000007 | B28: Camden | C28: Greater London | D28: London | E28: 3283.06176 | F28: 2901743.793 | G28: 3.1679 | H28: 601.7391
A29: E09000001 | B29: City of London | C29: Greater London | D29: London | E29: 1400.12928 | F29: 602699.328 | G29: 3.1679 | H29: 672.9162
A30: E09000008 | B30: Croydon | C30: Greater London | D30: London | E30: 134798.6534 | F30: 7572269.295 | G30: 3.1679 | H30: 581.9604
A31: E09000009 | B31: Ealing | C31: Greater London | D31: London | E31: 9849.18528 | F31: 5834805.42 | G31: 3.1679 | H31: 672.9162
A32: E09000010 | B32: Enfield | C32: Greater London | D32: London | E32: 171008.8934 | F32: 6129862.548 | G32: 3.1679 | H32: 599.7529
A33: E09000011 | B33: Greenwich | C33: Greater London | D33: London | E33: 15884.22528 | F33: 5098546.633 | G33: 3.1679 | H33: 564.2998
A34: E09000012 | B34: Hackney | C34: Greater London | D34: London | E34: 4490.06976 | F34: 2776826.511 | G34: 3.1679 | H34: 599.7529
A35: E09000013 | B35: Hammersmith and Fulham | C35: Greater London | D35: London | E35: 0 | F35: 2265489.642 | G35: 3.1679 | H35: 672.9162
A36: E09000014 | B36: Haringey | C36: Greater London | D36: London | E36: 3041.66016 | F36: 3567658.153 | G36: 3.1679 | H36: 599.7529
A37: E09000015 | B37: Harrow | C37: Greater London | D37: London | E37: 65564.67456 | F37: 4580708.014 | G37: 3.1679 | H37: 587.235
A38: E09000016 | B38: Havering | C38: Greater London | D38: London | E38: 585398.88 | F38: 5648234.17 | G38: 3.1679 | H38: 613.0362
A39: E09000017 | B39: Hillingdon | C39: Greater London | D39: London | E39: 475754.2733 | F39: 6703786.806 | G39: 3.1679 | H39: 721.7348
A40: E09000018 | B40: Hounslow | C40: Greater London | D40: London | E40: 1641.53088 | F40: 5009340.695 | G40: 3.1679 | H40: 672.9162
A41: E09000019 | B41: Islington | C41: Greater London | D41: London | E41: 2800.25856 | F41: 2473336.42 | G41: 3.1679 | H41: 599.7529
A42: E09000020 | B42: Kensington and Chelsea | C42: Greater London | D42: London | E42: 1641.53088 | F42: 2122306.307 | G42: 3.1679 | H42: 672.9162
A43: E09000021 | B43: Kingston upon Thames | C43: Greater London | D43: London | E43: 72806.72256 | F43: 3377707.281 | G43: 3.1679 | H43: 643.4573
A44: E09000022 | B44: Lambeth | C44: Greater London | D44: London | E44: 25492.00896 | F44: 3788540.617 | G44: 3.1679 | H44: 564.2998
A45: E09000023 | B45: Lewisham | C45: Greater London | D45: London | E45: 6324.72192 | F45: 4434386.458 | G45: 3.1679 | H45: 564.2998
A46: E09000024 | B46: Merton | C46: Greater London | D46: London | E46: 9414.6624 | F46: 3774072.614 | G46: 3.1679 | H46: 581.9604
A47: E09000025 | B47: Newham | C47: Greater London | D47: London | E47: 0 | F47: 4174155.533 | G47: 3.1679 | H47: 597.0843
A48: E09000026 | B48: Redbridge | C48: Greater London | D48: London | E48: 116500.4122 | F48: 5157207.222 | G48: 3.1679 | H48: 597.0843
A49: E09000027 | B49: Richmond upon Thames | C49: Greater London | D49: London | E49: 1641.53088 | F49: 4237177.444 | G49: 3.1679 | H49: 672.9162
A50: E09000028 | B50: Southwark | C50: Greater London | D50: London | E50: 1400.12928 | F50: 4018837.743 | G50: 3.1679 | H50: 564.2998
A51: E09000029 | B51: Sutton | C51: Greater London | D51: London | E51: 72468.76032 | F51: 4163517.769 | G51: 3.1679 | H51: 581.9604
A52: E09000030 | B52: Tower Hamlets | C52: Greater London | D52: London | E52: 8883.57888 | F52: 3054196.95 | G52: 3.1679 | H52: 564.2998
B53: Transport for London | C53: Greater London | D53: London | G53: 3.1679 | H53: 621.2932
A54: E09000031 | B54: Waltham Forest | C54: Greater London | D54: London | E54: 113844.9946 | F54: 4161361.248 | G54: 3.1679 | H54: 599.7529
A55: E09000032 | B55: Wandsworth | C55: Greater London | D55: London | E55: 0 | F55: 4337375.201 | G55: 3.1679 | H55: 672.9162
A56: E09000033 | B56: Westminster | C56: Greater London | D56: London | E56: 7966.2528 | F56: 3534167.704 | G56: 3.1679 | H56: 672.9162
A57: E06000047 | B57: County Durham | C57: County Durham | D57: North East | E57: 22544398.86 | F57: 9983163.168 | G57: 1.5094 | H57: 104.3091
A58: E06000005 | B58: Darlington | C58: County Durham | D58: North East | E58: 2162765.215 | F58: 2744816.659 | G58: 1.5094 | H58: 74.0374
A59: E06000001 | B59: Hartlepool | C59: County Durham | D59: North East | E59: 662647.392 | F59: 3104488.95 | G59: 1.4 | H59: 87.4527
A60: E06000004 | B60: Stockton-on-Tees | C60: County Durham | D60: North East | E60: 1651621.467 | F60: 6243514.422 | G60: 1.5094 | H60: 86.328
A61: E06000002 | B61: Middlesbrough | C61: North Yorkshire | D61: North East | E61: 213785.257 | F61: 4631643.752 | G61: 1.5094 | H61: 86.862
A62: E06000003 | B62: Redcar and Cleveland | C62: North Yorkshire | D62: North East | E62: 2907730.552 | F62: 3220104.223 | G62: 1.5094 | H62: 81.6523
A63: E06000057 | B63: Northumberland | C63: Northumberland | D63: North East | E63: 38248586.83 | F63: 6047737.724 | G63: 1.4 | H63: 121.0917
A64: E08000037 | B64: Gateshead | C64: Tyne and Wear | D64: North East | E64: 1935171.786 | F64: 6405929.418 | G64: 1.4 | H64: 93.2973
A65: E08000021 | B65: Newcastle upon Tyne | C65: Tyne and Wear | D65: North East | E65: 669503.1974 | F65: 8609201.821 | G65: 1.4 | H65: 146.8888
A66: E08000022 | B66: North Tyneside | C66: Tyne and Wear | D66: North East | E66: 775913.0227 | F66: 6836412.845 | G66: 1.4 | H66: 90.0143
A67: E08000023 | B67: South Tyneside | C67: Tyne and Wear | D67: North East | E67: 508488.3302 | F67: 4834131.414 | G67: 1.4 | H67: 80.4688
A68: E08000024 | B68: Sunderland | C68: Tyne and Wear | D68: North East | E68: 1407516.169 | F68: 9401594.527 | G68: 1.4 | H68: 106.0146
A69: E06000049 | B69: Cheshire East | C69: Cheshire | D69: North West | E69: 15729776.54 | F69: 10175978.67 | G69: 2.0128 | H69: 187.7623
A70: E06000050 | B70: Cheshire West and Chester | C70: Cheshire | D70: North West | E70: 12824701.4 | F70: 8481419.908 | G70: 2.0128 | H70: 201.2336
A71: E06000006 | B71: Halton | C71: Cheshire | D71: North West | E71: 791073.0432 | F71: 4715554.948 | G71: 2.0128 | H71: 129.1721
A72: E06000007 | B72: Warrington | C72: Cheshire | D72: North West | E72: 2424010.026 | F72: 6625797.996 | G72: 2.0128 | H72: 120.1201
A73: E10000006 | B73: Cumbria | C73: Cumbria | D73: North West | E73: 59701560.78 | F73: 8398039.795 | G73: 1.6851 | H73: 134.5666
A74: E08000001 | B74: Bolton | C74: Greater Manchester | D74: North West | E74: 1204014.62 | F74: 8325651.502 | G74: 2.0128 | H74: 136.5867
A75: E08000002 | B75: Bury | C75: Greater Manchester | D75: North West | E75: 582888.3034 | F75: 5885741.157 | G75: 2.0128 | H75: 142.9184
A76: E08000003 | B76: Manchester | C76: Greater Manchester | D76: North West | E76: 131225.9098 | F76: 13235293.34 | G76: 2.0128 | H76: 204.6654
A77: E08000004 | B77: Oldham | C77: Greater Manchester | D77: North West | E77: 1337509.705 | F77: 6523878.24 | G77: 2.0128 | H77: 128.6731
A78: E08000005 | B78: Rochdale | C78: Greater Manchester | D78: North West | E78: 864121.1674 | F78: 6564514.176 | G78: 2.0128 | H78: 130.3057
A79: E08000006 | B79: Salford | C79: Greater Manchester | D79: North West | E79: 267955.776 | F79: 7420347.222 | G79: 2.0128 | H79: 201.563
A80: E08000007 | B80: Stockport | C80: Greater Manchester | D80: North West | E80: 762056.5709 | F80: 8787452.763 | G80: 2.0128 | H80: 196.3264
A81: E08000008 | B81: Tameside | C81: Greater Manchester | D81: North West | E81: 545374.4947 | F81: 6742636.37 | G81: 1.8489 | H81: 174.3837
A82: E08000009 | B82: Trafford | C82: Greater Manchester | D82: North West | E82: 592399.5264 | F82: 7159263.345 | G82: 1.8489 | H82: 158.124
A83: E08000010 | B83: Wigan | C83: Greater Manchester | D83: North West | E83: 1605706.883 | F83: 9485248.228 | G83: 1.8489 | H83: 116.6945
A84: E06000008 | B84: Blackburn with Darwen | C84: Lancashire | D84: North West | E84: 1010313.976 | F84: 4216078.944 | G84: 2.0128 | H84: 117.1021
A85: E06000009 | B85: Blackpool | C85: Lancashire | D85: North West | E85: 71358.31296 | F85: 4457062.115 | G85: 2.0596 | H85: 130.4456
A86: E10000017 | B86: Lancashire | C86: Lancashire | D86: North West | E86: 31380663.03 | F86: 30963183.1 | G86: 2.0596 | H86: 130.4456
A87: E08000011 | B87: Knowsley | C87: Merseyside | D87: North West | E87: 828924.8141 | F87: 4702680.196 | G87: 1.7319 | H87: 85.3121
A88: E08000012 | B88: Liverpool | C88: Merseyside | D88: North West | E88: 175112.7206 | F88: 13933169.27 | G88: 1.7319 | H88: 85.3121
A89: E08000014 | B89: Sefton | C89: Merseyside | D89: North West | E89: 1016880.1 | F89: 8436100.781 | G89: 1.7319 | H89: 83.3999
A90: E08000013 | B90: St Helens | C90: Merseyside | D90: North West | E90: 1673589.012 | F90: 5266674.801 | G90: 1.7319 | H90: 86.2291
A91: E08000015 | B91: Wirral | C91: Merseyside | D91: North West | E91: 1080030.758 | F91: 10546996.84 | G91: 1.8489 | H91: 57.7938
A92: E06000036 | B92: Bracknell Forest | C92: Berkshire | D92: South East | E92: 1169928.714 | F92: 3274323.022 | G92: 2.2362 | H92: 320.7524
A93: E06000038 | B93: Reading | C93: Berkshire | D93: South East | E93: 116403.8515 | F93: 3743543.359 | G93: 2.2362 | H93: 282.0673
A94: E06000039 | B94: Slough | C94: Berkshire | D94: South East | E94: 177092.2138 | F94: 2772095.04 | G94: 2.2362 | H94: 307.5101
A95: E06000037 | B95: West Berkshire | C95: Berkshire | D95: South East | E95: 8815889.871 | F95: 3052507.139 | G95: 2.2362 | H95: 260.9802
A96: E06000040 | B96: Windsor and Maidenhead | C96: Berkshire | D96: South East | E96: 2221474.084 | F96: 4185227.82 | G96: 2.2362 | H96: 487.049
A97: E06000041 | B97: Wokingham | C97: Berkshire | D97: South East | E97: 2611289.388 | F97: 4462614.351 | G97: 2.2362 | H97: 342.5259
A98: E10000002 | B98: Buckinghamshire | C98: Buckinghamshire | D98: South East | E98: 18875046.26 | F98: 10058818.43 | G98: 2.2362 | H98: 385.4948
A99: E06000042 | B99: Milton Keynes | C99: Buckinghamshire | D99: South East | E99: 2669370.612 | F99: 8503709.322 | G99: 2.2362 | H99: 251.21
A100: E10000011 | B100: East Sussex | C100: East Sussex | D100: South East | E100: 18490928.04 | F100: 11886920.56 | G100: 1.8635 | H100: 286.7029
A101: E10000014 | B101: Hampshire | C101: Hampshire | D101: South East | E101: 44008815.25 | F101: 33883643.57 | G101: 2.2362 | H101: 266.7739
A102: E06000046 | B102: Isle of Wight | C102: Hampshire | D102: South East | E102: 5370895.918 | F102: 2790264.534 | G102: 2.2362 | H102: 266.7739
A103: E06000044 | B103: Portsmouth | C103: Hampshire | D103: South East | E103: 142088.9818 | F103: 4283864.513 | G103: 2.2362 | H103: 198.742
A104: E06000045 | B104: Southampton | C104: Hampshire | D104: South East | E104: 36548.20224 | F104: 5634586.932 | G104: 2.2362 | H104: 185.3598
A105: E10000016 | B105: Kent | C105: Kent | D105: South East | E105: 49057922.83 | F105: 29226218.12 | G105: 2.2362 | H105: 282.5423
A106: E06000035 | B106: Medway | C106: Kent | D106: South East | E106: 1945310.653 | F106: 5985279.084 | G106: 2.2362 | H106: 293.4791
A107: E10000025 | B107: Oxfordshire | C107: Oxfordshire | D107: South East | E107: 30634442.4 | F107: 11196994.79 | G107: 2.2362 | H107: 315.8707
A108: E10000030 | B108: Surrey | C108: Surrey | D108: South East | E108: 18964895.94 | F108: 31523331.38 | G108: 2.2362 | H108: 464.5726
A109: E06000043 | B109: Brighton and Hove | C109: Sussex | D109: South East | E109: 326181.8419 | F109: 5616272.598 | G109: 2.2362 | H109: 291.9243
A110: E10000032 | B110: West Sussex | C110: West Sussex | D110: South East | E110: 20769034.94 | F110: 17234545.36 | G110: 2.2362 | H110: 336.0918
A111: E06000052 | B111: Cornwall | C111: Cornwall | D111: South West | E111: 56648023.66 | F111: 5776337.952 | G111: 2.1893 | H111: 175.5886
A112: E06000053 | B112: Isles of Scilly | C112: Cornwall | D112: South West | E112: 312277.1098 | F112: 0 | G112: 2.1893 | H112: 175.5886
A113: E10000008 | B113: Devon | C113: Devon | D113: South West | E113: 99689590.98 | F113: 9856185.926 | G113: 2.1138 | H113: 163.5428
A114: E06000026 | B114: Plymouth | C114: Devon | D114: South West | E114: 324347.1898 | F114: 7341779.048 | G114: 2.1893 | H114: 156.5334
A115: E06000027 | B115: Torbay | C115: Devon | D115: South West | E115: 664820.0064 | F115: 4341849.178 | G115: 2.1138 | H115: 163.5428
A116: E06000028 | B116: Bournemouth | C116: Dorset | D116: South West | E116: 95595.0336 | F116: 4875057.032 | G116: 2.1138 | H116: 187.0869
A117: E10000009 | B117: Dorset | C117: Dorset | D117: South West | E117: 28701346.67 | F117: 8876481.673 | G117: 2.1138 | H117: 187.0869
A118: E06000029 | B118: Poole | C118: Dorset | D118: South West | E118: 324540.311 | F118: 4849210.967 | G118: 2.1138 | H118: 169.3551
A119: E10000013 | B119: Gloucestershire | C119: Gloucestershire | D119: South West | E119: 34612692.49 | F119: 14152909.1 | G119: 2.1138 | H119: 144.4851
A120: E06000025 | B120: South Gloucestershire | C120: Gloucestershire | D120: South West | E120: 6202958.953 | F120: 7140997.29 | G120: 2.0131 | H120: 204.4763
A121: E06000022 | B121: Bath and North East Somerset | C121: Somerset | D121: South West | E121: 5595061.444 | F121: 4009809.324 | G121: 2.139 | H121: 205.5104
A122: E06000023 | B122: Bristol | C122: Somerset | D122: South West | E122: 273556.2931 | F122: 10860786.73 | G122: 2.1893 | H122: 190.296
A123: E06000024 | B123: North Somerset | C123: Somerset | D123: South West | E123: 5425838.922 | F123: 4825135.181 | G123: 2.1893 | H123: 193.7651
A124: E10000027 | B124: Somerset | C124: Somerset | D124: South West | E124: 50406971.54 | F124: 7746400.316 | G124: 2.1893 | H124: 181.7395
A125: E06000030 | B125: Swindon | C125: Wiltshire | D125: South West | E125: 2485760.556 | F125: 5593661.315 | G125: 2.1138 | H125: 169.0176
A126: E06000054 | B126: Wiltshire | C126: Wiltshire | D126: South West | E126: 33739977.43 | F126: 7457410.414 | G126: 2.1138 | H126: 154.6292
A127: E06000019 | B127: Herefordshire | C127: Herefordshire | D127: West Midlands | E127: 26171699.3 | F127: 2665218.505 | G127: 2.3388 | H127: 177.9873
A128: E06000051 | B128: Shropshire | C128: Shropshire | D128: West Midlands | E128: 40484979.53 | F128: 3927491.378 | G128: 2.1636 | H128: 150.1402
A129: E06000020 | B129: Telford and Wrekin | C129: Shropshire | D129: West Midlands | E129: 3794302.068 | F129: 5632462.598 | G129: 2.3388 | H129: 135.0314
A130: E10000028 | B130: Staffordshire | C130: Staffordshire | D130: West Midlands | E130: 34853321.61 | F130: 20407865.96 | G130: 2.4212 | H130: 157.8761
A131: E06000021 | B131: Stoke-on-Trent | C131: Staffordshire | D131: West Midlands | E131: 302572.7654 | F131: 8135362.668 | G131: 2.4212 | H131: 118.6692
A132: E10000031 | B132: Warwickshire | C132: Warwickshire | D132: West Midlands | E132: 24221560.62 | F132: 11043608.21 | G132: 2.3439 | H132: 225.5704
A133: E08000025 | B133: Birmingham | C133: West Midlands | D133: West Midlands | E133: 345831.9322 | F133: 24481485.77 | G133: 2.2924 | H133: 192.1845
A134: E08000026 | B134: Coventry | C134: West Midlands | D134: West Midlands | E134: 450938.1888 | F134: 8008498.08 | G134: 2.4212 | H134: 153.0659
A135: E08000027 | B135: Dudley | C135: West Midlands | D135: West Midlands | E135: 242946.5702 | F135: 9803624.751 | G135: 2.4212 | H135: 141.4258
A136: E08000028 | B136: Sandwell | C136: West Midlands | D136: West Midlands | E136: 9318.10176 | F136: 8691133.524 | G136: 2.4212 | H136: 158.9758
A137: E08000029 | B137: Solihull | C137: West Midlands | D137: West Midlands | E137: 2298143.232 | F137: 5639093.096 | G137: 2.4212 | H137: 262.3134
A138: E08000030 | B138: Walsall | C138: West Midlands | D138: West Midlands | E138: 544505.449 | F138: 7835638.441 | G138: 2.4212 | H138: 121.2941
A139: E08000031 | B139: Wolverhampton | C139: West Midlands | D139: West Midlands | E139: 49052.80512 | F139: 7468885.037 | G139: 2.4212 | H139: 120.5814
A140: E10000034 | B140: Worcestershire | C140: Worcestershire | D140: West Midlands | E140: 24461755.21 | F140: 13025837.21 | G140: 2.0348 | H140: 204.8164
A141: E06000011 | B141: East Riding of Yorkshire | C141: East Riding of Yorkshire | D141: Yorkshire and the Humber | E141: 25261518.71 | F141: 4636568.344 | G141: 1.8558 | H141: 119.6477
A142: E06000010 | B142: Kingston upon Hull | C142: East Riding of Yorkshire | D142: Yorkshire and the Humber | E142: 105444.2189 | F142: 6936208.266 | G142: 1.8558 | H142: 121.3238
A143: E06000012 | B143: North East Lincolnshire | C143: Lincolnshire | D143: Yorkshire and the Humber | E143: 1583063.412 | F143: 4467217.075 | G143: 1.9733 | H143: 86.3821
A144: E06000013 | B144: North Lincolnshire | C144: Lincolnshire | D144: Yorkshire and the Humber | E144: 9640807.419 | F144: 2635397.361 | G144: 1.9733 | H144: 86.9354
A145: E10000023 | B145: North Yorkshire | C145: North Yorkshire | D145: Yorkshire and the Humber | E145: 70598042.76 | F145: 8341294.326 | G145: 1.8558 | H145: 119.0568
A146: E06000014 | B146: York | C146: North Yorkshire | D146: Yorkshire and the Humber | E146: 2914682.918 | F146: 4275656.859 | G146: 2.1377 | H146: 152.4187
A147: E08000016 | B147: Barnsley | C147: South Yorkshire | D147: Yorkshire and the Humber | E147: 4299410.776 | F147: 6719461.816 | G147: 1.9733 | H147: 90.7311
A148: E08000017 | B148: Doncaster | C148: South Yorkshire | D148: Yorkshire and the Humber | E148: 6175004.648 | F148: 8597469.704 | G148: 1.6209 | H148: 110.0821
A149: E08000018 | B149: Rotherham | C149: South Yorkshire | D149: Yorkshire and the Humber | E149: 3271184.801 | F149: 7882341.604 | G149: 1.6209 | H149: 116.3528
A150: E08000019 | B150: Sheffield | C150: South Yorkshire | D150: Yorkshire and the Humber | E150: 3041129.076 | F150: 15996106.87 | G150: 1.6209 | H150: 144.2399
A151: E08000032 | B151: Bradford | C151: West Yorkshire | D151: Yorkshire and the Humber | E151: 4204153.705 | F151: 14039482.53 | G151: 1.8558 | H151: 95.9575
A152: E08000033 | B152: Calderdale | C152: West Yorkshire | D152: Yorkshire and the Humber | E152: 4431505.732 | F152: 6298875.855 | G152: 1.7384 | H152: 94.1399
A153: E08000034 | B153: Kirklees | C153: West Yorkshire | D153: Yorkshire and the Humber | E153: 5479961.161 | F153: 12377850.95 | G153: 1.8558 | H153: 95.0185
A154: E08000035 | B154: Leeds | C154: West Yorkshire | D154: Yorkshire and the Humber | E154: 5238945.804 | F154: 23029294.21 | G154: 1.8558 | H154: 188.6554
A155: E08000036 | B155: Wakefield | C155: West Yorkshire | D155: Yorkshire and the Humber | E155: 4763191.53 | F155: 9381944.436 | G155: 1.8558 | H155: 94.2501

Sheet List (hidden)
A1: Region Unique | B1: Region | C1: Authority - Carriageway | D1: Select a Region | E1: Region | F1: Pick your Authority | G1: Ceremonial County | H1: Pick a Data Category | I1: StreetLighting | J1: IlluminatedSigns | K1: TrafficSignals | L1: Crossings | M1: InfoSystems | N1: InStations
A2: Select_a_Region | B2: Select an Authority | C2: Select an Authority | D2: Select_a_Region | E2: East Midlands | F2: Derby | G2: Derbyshire | H2: Actual Inventory | I2: Please select from list or type a description | J2: Please select from list or type a description | K2: Please select from list or type a description | L2: Please select from list or type a description | M2: Please select from list or type a description | N2: Please select from list or type a description
A3: South_East | B3: East Midlands | C3: Derby | D3: South_East | E3: East Midlands | F3: Derbyshire | G3: Derbyshire | H3: Sample Inventory | I3: Steel Streetlights | J3: Circular 600mm Aluminium 1 Post | K3: Poles | L3: Puffin Crossing | M3: Real Time Passenger Information (display and remote comms) | N3: UTC
A4: London | B4: East Midlands | C4: Derbyshire | D4: London | E4: East Midlands | F4: Leicester | G4: Leicestershire | H4: Estimated Values | I4: Concrete Streetlights | J4: Circular 750mm Aluminium 1 Post | K4: RAG head halogen | L4: Pelican Crossing | M4: Real Time Passenger Information (bus fits) | N4: UTMC common database
A5: North_East | B5: East Midlands | C5: Leicester | D5: North_East | E5: East Midlands | F5: Leicestershire | G5: Leicestershire | H5: Combination | I5: Other Types of Streetlights (i.e. Bracketed) | J5: Circular 900mm Aluminium 2 Posts | K5: RAG head LED | L5: Toucan Crossing | M5: Variable Message Signs - 50-100mmm x-height | N5: RTPI central server
A6: South_West | B6: East Midlands | C6: Leicestershire | D6: South_West | E6: East Midlands | F6: Lincolnshire | G6: Lincolnshire | I6: Columns up to 6.0m | J6: Circular 1200mm Aluminium 2 Posts | K6: Loop | L6: Pegasus Crossing | M6: Variable Message Signs - 101-175mmm x-height | N6: RTPI bus depot computer instation
A7: West_Midlands | B7: East Midlands | C7: Lincolnshire | D7: West_Midlands | E7: East Midlands | F7: Northamptonshire | G7: Northamptonshire | I7: Columns up to 8.0m | J7: Circular 1500mm Aluminium 2 Posts | K7: MVD Veh | L7: Zebra Crossing | M7: Variable Message Signs - 176-225mmm x-height | N7: ANPR
A8: Yorkshire_and_the_Humber | B8: East Midlands | C8: Northamptonshire | D8: Yorkshire_and_the_Humber | E8: East Midlands | F8: Nottingham | G8: Nottinghamshire | I8: Columns up to 10.0m | J8: Triangular 600mm Aluminium 1 Post | K8: IRs | L8: School Crossing (flashing amber lights per sign) | M8: Vehicle Activated Signs - (VAS) | N8: VMS
A9: East_Midlands | B9: East Midlands | C9: Nottingham | D9: East_Midlands | E9: East Midlands | F9: Nottinghamshire | G9: Nottinghamshire | I9: Columns up to 12.0m | J9: Triangular 750mm Aluminium 1 Post | K9: MVD Ped | L9: Equestrian Crossing | M9: Safety and Speed Camera Equipment
A10: East_of_England | B10: East Midlands | C10: Nottinghamshire | D10: East_of_England | E10: East Midlands | F10: Rutland | G10: Rutland | I10: Subway Units | J10: Triangular 900mm Aluminium 2 Posts | K10: P Head Halogen | L10: Wig Wags | M10: CCTV (including posts)
A11: Scotland | B11: East Midlands | C11: Rutland | D11: North_West | E11: East of England | F11: Bedford | G11: Bedfordshire | I11: Heritage columns | J11: Triangular 1200mm Aluminium 2 Posts | K11: P Indicator LED | L11: Camera - TRUVELO | M11: Car Park Monitoring Systems
A12: Wales | B12: East of England | C12: Bedford | E12: East of England | F12: Central Bedfordshire | G12: Bedfordshire | I12: Feeder Pillar Small | J12: Triangular 1500mm Aluminium 2 Posts | K12: W Lamp Tungsten | L12: Camera - GATSO
A13: North_West | B13: East of England | C13: Cambridgeshire | E13: East of England | F13: Luton | G13: Bedfordshire | I13: Feeder Pillar Medium | J13: Rectangular >0.25sq m but < 0.5sq m Alum 1 Post | K13: W Lamp LED | L13: Fixed EMS/VMS Signs
B14: East of England | C14: Central Bedfordshire | E14: East of England | F14: Cambridgeshire | G14: Cambridgeshire | I14: Feeder Pillar Large | J14: Rectangular >0.5sq m but < 1.2sq m Alum 1 Post | K14: MOVA | L14: Mobile EMS/VMS Signs
B15: East of England | C15: Essex | E15: East of England | F15: Peterborough | G15: Cambridgeshire | I15: Illuminated Bollards | J15: Rectangular >1.2sq m but < 2.0sq m Alum 2 Posts | L15: Bridge Height EMS Signs
B16: East of England | C16: Hertfordshire | E16: East of England | F16: Essex | G16: Essex | J16: Rectangular >2.0sq m but < 5.0sq m Alum 3 Posts | L16: Road Junction
B17: East of England | C17: Luton | E17: East of England | F17: Southend-on-Sea | G17: Essex | J17: Rectangular >5.0sq m but < 10.0sq m Alum 3 Posts
B18: East of England | C18: Norfolk | E18: East of England | F18: Thurrock | G18: Essex
B19: East of England | C19: Peterborough | E19: East of England | F19: Hertfordshire | G19: Hertfordshire
B20: East of England | C20: Southend-On-Sea | E20: East of England | F20: Norfolk | G20: Norfolk
B21: East of England | C21: Suffolk | E21: East of England | F21: Suffolk | G21: Suffolk
B22: East of England | C22: Thurrock | E22: London | F22: Barking and Dagenham | G22: Greater London
B23: Greater London | C23: Barking And Dagenham | E23: London | F23: Barnet | G23: Greater London
B24: Greater London | C24: Barnet | E24: London | F24: Bexley | G24: Greater London
B25: Greater London | C25: Bexley | E25: London | F25: Brent | G25: Greater London
B26: Greater London | C26: Brent | E26: London | F26: Bromley | G26: Greater London
B27: Greater London | C27: Bromley | E27: London | F27: Camden | G27: Greater London
B28: Greater London | C28: Camden | E28: London | F28: City of London | G28: Greater London
B29: Greater London | C29: City Of London | E29: London | F29: Croydon | G29: Greater London
B30: Greater London | C30: Croydon | E30: London | F30: Ealing | G30: Greater London
B31: Greater London | C31: Ealing | E31: London | F31: Enfield | G31: Greater London
B32: Greater London | C32: Enfield | E32: London | F32: Greenwich | G32: Greater London
B33: Greater London | C33: Greater London | E33: London | F33: Hackney | G33: Greater London
B34: Greater London | C34: Greenwich | E34: London | F34: Hammersmith and Fulham | G34: Greater London
B35: Greater London | C35: Hackney | E35: London | F35: Haringey | G35: Greater London
B36: Greater London | C36: Hammersmith And Fulham | E36: London | F36: Harrow | G36: Greater London
B37: Greater London | C37: Haringey | E37: London | F37: Havering | G37: Greater London
B38: Greater London | C38: Harrow | E38: London | F38: Hillingdon | G38: Greater London
B39: Greater London | C39: Havering | E39: London | F39: Hounslow | G39: Greater London
B40: Greater London | C40: Hillingdon | E40: London | F40: Islington | G40: Greater London
B41: Greater London | C41: Hounslow | E41: London | F41: Kensington and Chelsea | G41: Greater London
B42: Greater London | C42: Islington | E42: London | F42: Kingston upon Thames | G42: Greater London
B43: Greater London | C43: Kensington And Chelsea | E43: London | F43: Lambeth | G43: Greater London
B44: Greater London | C44: Kingston Upon Thames | E44: London | F44: Lewisham | G44: Greater London
B45: Greater London | C45: Lambeth | E45: London | F45: Merton | G45: Greater London
B46: Greater London | C46: Lewisham | E46: London | F46: Newham | G46: Greater London
B47: Greater London | C47: Merton | E47: London | F47: Redbridge | G47: Greater London
B48: Greater London | C48: Newham | E48: London | F48: Richmond upon Thames | G48: Greater London
B49: Greater London | C49: Redbridge | E49: London | F49: Southwark | G49: Greater London
B50: Greater London | C50: Richmond Upon Thames | E50: London | F50: Sutton | G50: Greater London
B51: Greater London | C51: Southwark | E51: London | F51: Tower Hamlets | G51: Greater London
B52: Greater London | C52: Sutton | E52: London | F52: Transport for London | G52: Greater London
B53: Greater London | C53: Tower Hamlets | E53: London | F53: Waltham Forest | G53: Greater London
B54: Greater London | C54: Transport for London | E54: London | F54: Wandsworth | G54: Greater London
B55: Greater London | C55: Waltham Forest | E55: London | F55: Westminster | G55: Greater London
B56: Greater London | C56: Wandsworth | E56: North East England | F56: County Durham | G56: County Durham
B57: Greater London | C57: Westminster | E57: North East England | F57: Darlington | G57: County Durham
B58: North East | C58: County Durham | E58: North East England | F58: Hartlepool | G58: County Durham
B59: North East | C59: Darlington | E59: North East England | F59: Stockton-on-Tees | G59: County Durham
B60: North East | C60: Gateshead | E60: North East England | F60: Middlesbrough | G60: North Yorkshire
B61: North East | C61: Hartlepool | E61: North East England | F61: Redcar and Cleveland | G61: North Yorkshire
B62: North East | C62: Middlesbrough | E62: North East England | F62: Northumberland | G62: Northumberland
B63: North East | C63: Newcastle Upon Tyne | E63: North East England | F63: Gateshead | G63: Tyne and Wear
B64: North East | C64: North Tyneside | E64: North East England | F64: Newcastle upon Tyne | G64: Tyne and Wear
B65: North East | C65: Northumberland | E65: North East England | F65: North Tyneside | G65: Tyne and Wear
B66: North East | C66: Redcar And Cleveland | E66: North East England | F66: South Tyneside | G66: Tyne and Wear
B67: North East | C67: South Tyneside | E67: North East England | F67: Sunderland | G67: Tyne and Wear
B68: North East | C68: Stockton-On-Tees | E68: North West England | F68: Cheshire East | G68: Cheshire
B69: North East | C69: Sunderland | E69: North West England | F69: Cheshire West and Chester | G69: Cheshire
B70: North East | C70: Tyne And Wear | E70: North West England | F70: Halton | G70: Cheshire
B71: North West | C71: Blackburn With Darwen | E71: North West England | F71: Warrington | G71: Cheshire
B72: North West | C72: Blackpool | E72: North West England | F72: Cumbria | G72: Cumbria
B73: North West | C73: Bolton | E73: North West England | F73: Bolton | G73: Greater Manchester
B74: North West | C74: Bury | E74: North West England | F74: Bury | G74: Greater Manchester
B75: North West | C75: Cheshire East | E75: North West England | F75: Manchester | G75: Greater Manchester
B76: North West | C76: Cheshire West And Chester | E76: North West England | F76: Oldham | G76: Greater Manchester
B77: North West | C77: Cumbria | E77: North West England | F77: Rochdale | G77: Greater Manchester
B78: North West | C78: Greater Manchester | E78: North West England | F78: Salford | G78: Greater Manchester
B79: North West | C79: Halton | E79: North West England | F79: Stockport | G79: Greater Manchester
B80: North West | C80: Knowsley | E80: North West England | F80: Tameside | G80: Greater Manchester
B81: North West | C81: Lancashire | E81: North West England | F81: Trafford | G81: Greater Manchester
B82: North West | C82: Liverpool | E82: North West England | F82: Wigan | G82: Greater Manchester
B83: North West | C83: Manchester | E83: North West England | F83: Blackburn with Darwen | G83: Lancashire
B84: North West | C84: Merseyside | E84: North West England | F84: Blackpool | G84: Lancashire
B85: North West | C85: Oldham | E85: North West England | F85: Lancashire | G85: Lancashire
B86: North West | C86: Rochdale | E86: North West England | F86: Knowsley | G86: Merseyside
B87: North West | C87: Salford | E87: North West England | F87: Liverpool | G87: Merseyside
B88: North West | C88: Sefton | E88: North West England | F88: Sefton | G88: Merseyside
B89: North West | C89: St Helens | E89: North West England | F89: St Helens | G89: Merseyside
B90: North West | C90: Stockport | E90: North West England | F90: Wirral | G90: Merseyside
B91: North West | C91: Tameside | E91: South East England | F91: Bracknell Forest | G91: Berkshire
B92: North West | C92: Trafford | E92: South East England | F92: Reading | G92: Berkshire
B93: North West | C93: Warrington | E93: South East England | F93: Slough | G93: Berkshire
B94: North West | C94: Wigan | E94: South East England | F94: West Berkshire | G94: Berkshire
B95: North West | C95: Wirral | E95: South East England | F95: Windsor and Maidenhead | G95: Berkshire
B96: Scotland | C96: Aberdeen City | E96: South East England | F96: Wokingham | G96: Berkshire
B97: Scotland | C97: Aberdeenshire | E97: South East England | F97: Buckinghamshire | G97: Buckinghamshire
B98: Scotland | C98: Angus | E98: South East England | F98: Milton Keynes | G98: Buckinghamshire
B99: Scotland | C99: Argyll And Bute | E99: South East England | F99: East Sussex | G99: East Sussex
B100: Scotland | C100: City Of Edinburgh | E100: South East England | F100: Hampshire | G100: Hampshire
B101: Scotland | C101: Clackmannanshire | E101: South East England | F101: Isle of Wight | G101: Hampshire
B102: Scotland | C102: Dumfries And Galloway | E102: South East England | F102: Portsmouth | G102: Hampshire
B103: Scotland | C103: Dundee City | E103: South East England | F103: Southampton | G103: Hampshire
B104: Scotland | C104: East Ayrshire | E104: South East England | F104: Kent | G104: Kent
B105: Scotland | C105: East Dunbartonshire | E105: South East England | F105: Medway | G105: Kent
B106: Scotland | C106: East Lothian | E106: South East England | F106: Oxfordshire | G106: Oxfordshire
B107: Scotland | C107: East Renfrewshire | E107: South East England | F107: Surrey | G107: Surrey
B108: Scotland | C108: Eilean Siar | E108: South East England | F108: Brighton and Hove | G108: Sussex
B109: Scotland | C109: Falkirk | E109: South East England | F109: West Sussex | G109: West Sussex
B110: Scotland | C110: Fife | E110: South West England | F110: Cornwall | G110: Cornwall
B111: Scotland | C111: Glasgow City | E111: South West England | F111: Isles of Scilly | G111: Cornwall
B112: Scotland | C112: Highland | E112: South West England | F112: Devon | G112: Devon
B113: Scotland | C113: Inverclyde | E113: South West England | F113: Plymouth | G113: Devon
B114: Scotland | C114: Midlothian | E114: South West England | F114: Torbay | G114: Devon
B115: Scotland | C115: Moray | E115: South West England | F115: Bournemouth | G115: Dorset
B116: Scotland | C116: North Ayrshire | E116: South West England | F116: Dorset | G116: Dorset
B117: Scotland | C117: North Lanarkshire | E117: South West England | F117: Poole | G117: Dorset
B118: Scotland | C118: Orkney Islands | E118: South West England | F118: Gloucestershire | G118: Gloucestershire
B119: Scotland | C119: Perth And Kinross | E119: South West England | F119: South Gloucestershire | G119: Gloucestershire
B120: Scotland | C120: Renfrewshire | E120: South West England | F120: Bath and North East Somerset | G120: Somerset
B121: Scotland | C121: Scottish Borders | E121: South West England | F121: Bristol | G121: Somerset
B122: Scotland | C122: Shetland Islands | E122: South West England | F122: North Somerset | G122: Somerset
B123: Scotland | C123: South Ayrshire | E123: South West England | F123: Somerset | G123: Somerset
B124: Scotland | C124: South Lanarkshire | E124: South West England | F124: Swindon | G124: Wiltshire
B125: Scotland | C125: Stirling | E125: South West England | F125: Wiltshire | G125: Wiltshire
B126: Scotland | C126: West Dunbartonshire | E126: West Midlands | F126: Herefordshire | G126: Herefordshire
B127: Scotland | C127: West Lothian | E127: West Midlands | F127: Shropshire | G127: Shropshire
B128: South East | C128: Bracknell Forest | E128: West Midlands | F128: Telford and Wrekin | G128: Shropshire
B129: South East | C129: Brighton And Hove | E129: West Midlands | F129: Staffordshire | G129: Staffordshire
B130: South East | C130: Buckinghamshire | E130: West Midlands | F130: Stoke-on-Trent | G130: Staffordshire
B131: South East | C131: East Sussex | E131: West Midlands | F131: Warwickshire | G131: Warwickshire
B132: South East | C132: Hampshire | E132: West Midlands | F132: Birmingham | G132: West Midlands
B133: South East | C133: Isle Of Wight | E133: West Midlands | F133: Coventry | G133: West Midlands
B134: South East | C134: Kent | E134: West Midlands | F134: Dudley | G134: West Midlands
B135: South East | C135: Medway | E135: West Midlands | F135: Sandwell | G135: West Midlands
B136: South East | C136: Milton Keynes | E136: West Midlands | F136: Solihull | G136: West Midlands
B137: South East | C137: Oxfordshire | E137: West Midlands | F137: Walsall | G137: West Midlands
B138: South East | C138: Portsmouth | E138: West Midlands | F138: Wolverhampton | G138: West Midlands
B139: South East | C139: Reading | E139: West Midlands | F139: Worcestershire | G139: Worcestershire
B140: South East | C140: Slough | E140: Yorkshire and the Humber | F140: East Riding of Yorkshire | G140: East Riding of Yorkshire
B141: South East | C141: Southampton | E141: Yorkshire and the Humber | F141: Kingston upon Hull | G141: East Riding of Yorkshire
B142: South East | C142: Surrey | E142: Yorkshire and the Humber | F142: North East Lincolnshire | G142: Lincolnshire
B143: South East | C143: West Berkshire | E143: Yorkshire and the Humber | F143: North Lincolnshire | G143: Lincolnshire
B144: South East | C144: West Sussex | E144: Yorkshire and the Humber | F144: North Yorkshire | G144: North Yorkshire
B145: South East | C145: Windsor And Maidenhead | E145: Yorkshire and the Humber | F145: York | G145: North Yorkshire
B146: South East | C146: Wokingham | E146: Yorkshire and the Humber | F146: Barnsley | G146: South Yorkshire
B147: South West | C147: Bath And North East Somerset | E147: Yorkshire and the Humber | F147: Doncaster | G147: South Yorkshire
B148: South West | C148: Bournemouth | E148: Yorkshire and the Humber | F148: Rotherham | G148: South Yorkshire
B149: South West | C149: Bristol | E149: Yorkshire and the Humber | F149: Sheffield | G149: South Yorkshire
B150: South West | C150: Cornwall | E150: Yorkshire and the Humber | F150: Bradford | G150: West Yorkshire
B151: South West | C151: Devon | E151: Yorkshire and the Humber | F151: Calderdale | G151: West Yorkshire
B152: South West | C152: Dorset | E152: Yorkshire and the Humber | F152: Kirklees | G152: West Yorkshire
B153: South West | C153: Gloucestershire | E153: Yorkshire and the Humber | F153: Leeds | G153: West Yorkshire
B154: South West | C154: North Somerset | E154: Yorkshire and the Humber | F154: Wakefield | G154: West Yorkshire
B155: South West | C155: Plymouth
B156: South West | C156: Poole
B157: South West | C157: Somerset
B158: South West | C158: South Gloucestershire
B159: South West | C159: Swindon
B160: South West | C160: Torbay
B161: South West | C161: Wiltshire
B162: Wales | C162: Blaenau Gwent
B163: Wales | C163: Bridgend
B164: Wales | C164: Caerphilly
B165: Wales | C165: Cardiff
B166: Wales | C166: Carmarthenshire
B167: Wales | C167: Ceredigion
B168: Wales | C168: Conwy
B169: Wales | C169: Denbighshire
B170: Wales | C170: Flintshire
B171: Wales | C171: Gwynedd
B172: Wales | C172: Isle Of Anglesey
B173: Wales | C173: Merthyr Tydfil
B174: Wales | C174: Monmouthshire
B175: Wales | C175: Neath Port Talbot
B176: Wales | C176: Newport
B177: Wales | C177: Pembrokeshire
B178: Wales | C178: Powys
B179: Wales | C179: Rhondda Cynon Taf
B180: Wales | C180: Swansea
B181: Wales | C181: Torfaen
B182: Wales | C182: Vale Of Glamorgan
B183: Wales | C183: Wrexham
B184: West Midlands | C184: Birmingham
B185: West Midlands | C185: Coventry
B186: West Midlands | C186: Dudley
B187: West Midlands | C187: Herefordshire
B188: West Midlands | C188: Sandwell
B189: West Midlands | C189: Shropshire
B190: West Midlands | C190: Solihull
B191: West Midlands | C191: Staffordshire
B192: West Midlands | C192: Stoke-On-Trent
B193: West Midlands | C193: Telford And Wrekin
B194: West Midlands | C194: Walsall
B195: West Midlands | C195: Warwickshire
B196: West Midlands | C196: West Midlands
B197: West Midlands | C197: Wolverhampton
B198: West Midlands | C198: Worcestershire
B199: Yorkshire and the Humber | C199: Barnsley
B200: Yorkshire and the Humber | C200: Bradford
... 15 more rows
